Workbook

Sheet Data summary
A1: RUN # 2 | B1: Rate classes | C1: Weather station used for normalization | H1: Test Year
A2: 1 | B2: Residential | C2: Windsor | H2: 2004
A3: 2 | B3: GS>50kW
A4: 3 | B4: Street Lighting
A5: 4 | B5: GS<50kW
A6: 5 | B6: Sentinel Lightig
A7: 6 | B7: Intermediate
A8: 7 | B8: USL
A11: Monthly kWh by class (with actual weather) | C11: Jan | D11: Feb | E11: Mar | F11: Apr | G11: May | H11: Jun | I11: Jul | J11: Aug | K11: Sep | L11: Oct | M11: Nov | N11: Dec | O11: TOTAL
A12: 1 | B12: Residential | C12: 4785829.269 | D12: 4156443.374 | E12: 4087754.031 | F12: 3446999.893 | G12: 3233613.686 | H12: 3224421.717 | I12: 3570772.239 | J12: 3440283.487 | K12: 3230074.836 | L12: 3523891.763 | M12: 3814204.374 | N12: 4826401.601 | O12: 45340690.27
A13: 2 | B13: GS>50kW | C13: 5537497.198 | D13: 5106765.526 | E13: 5510685.55 | F13: 5031718.036 | G13: 5137735.75 | H13: 5141184.641 | I13: 5211596.929 | J13: 5346718.156 | K13: 5428442.565 | L13: 5270981.404 | M13: 5437089.473 | N13: 5480281.063 | O13: 63640696.29
A14: 3 | B14: Street Lighting | C14: 122410.3191 | D14: 114512.8791 | E14: 123726.5853 | F14: 91605.22381 | G14: 96236.20318 | H14: 93131.80953 | I14: 73223.19807 | J14: 73224.78535 | K14: 71277.8198 | L14: 105219.6387 | M14: 102219.3931 | N14: 105626.7063 | O14: 1172414.561
A15: 4 | B15: GS<50kW | C15: 2130386.193 | D15: 1961009.078 | E15: 1910440.474 | F15: 1639547.599 | G15: 1647946.71 | H15: 1659639.003 | I15: 1801600.863 | J15: 1784468.233 | K15: 1659349.836 | L15: 1725789.59 | M15: 1797113.86 | N15: 2090309.638 | O15: 21807601.08
A16: 5 | B16: Sentinel Lightig | C16: 4197 | D16: 3898 | E16: 4192 | F16: 4743 | G16: 4021 | H16: 3953 | I16: 4333 | J16: 4363 | K16: 3766 | L16: 4479 | M16: 4223 | N16: 8167 | O16: 54335
A17: 6 | B17: Intermediate | C17: 2396943.95 | D17: 2304114.099 | E17: 2459917.572 | F17: 2319566.559 | G17: 1801770.281 | H17: 2220684.552 | I17: 2044905.862 | J17: 1829774.842 | K17: 2003890.375 | L17: 2092548.824 | M17: 1988065.594 | N17: 1611494.845 | O17: 25073677.35
A18: 7 | B18: USL | C18: 43187.96759 | D18: 45292.87353 | E18: 51392.99889 | F18: 41289.86476 | G18: 57444.10166 | H18: 50705.31806 | I18: 37551.99069 | J18: 52611.55352 | K18: 48260.04567 | L18: 43896.31107 | M18: 52279.858 | N18: 61572.99979 | O18: 585485.8832
A21: Monthly kWh by class (with normalized weather) | C21: Jan | D21: Feb | E21: Mar | F21: Apr | G21: May | H21: Jun | I21: Jul | J21: Aug | K21: Sep | L21: Oct | M21: Nov | N21: Dec | O21: TOTAL
A22: 1 | B22: Residential | C22: 4636285.081 | D22: 4200350.888 | E22: 4218817.884 | F22: 3526893.043 | G22: 3253181.221 | H22: 3311063.82 | I22: 3649638.274 | J22: 3552117.14 | K22: 3222516.897 | L22: 3620814.869 | M22: 3952899.858 | N22: 4807263.728 | O22: 45951842.7
A23: 2 | B23: GS>50kW | C23: 5472517.104 | D23: 5125844.264 | E23: 5567635.549 | F23: 5066433.289 | G23: 5149490.539 | H23: 5248464.535 | I23: 5309248.527 | J23: 5485190.122 | K23: 5421594.801 | L23: 5313096.531 | M23: 5497355.576 | N23: 5471965.255 | O23: 64128836.09
A24: 3 | B24: Street Lighting | C24: 122410.3191 | D24: 114512.8791 | E24: 123726.5853 | F24: 91605.22381 | G24: 96236.20318 | H24: 93131.80953 | I24: 73223.19807 | J24: 73224.78535 | K24: 71277.8198 | L24: 105219.6387 | M24: 102219.3931 | N24: 105626.7063 | O24: 1172414.561
A25: 4 | B25: GS<50kW | C25: 2086360.058 | D25: 1973935.546 | E25: 1949025.958 | F25: 1663068.316 | G25: 1654958.987 | H25: 1711942.606 | I25: 1849210.254 | J25: 1851979.326 | K25: 1655753.378 | L25: 1754323.964 | M25: 1837946.112 | N25: 2084675.407 | O25: 22073179.91
A26: 5 | B26: Sentinel Lightig | C26: 4197 | D26: 3898 | E26: 4192 | F26: 4743 | G26: 4021 | H26: 3953 | I26: 4333 | J26: 4363 | K26: 3766 | L26: 4479 | M26: 4223 | N26: 8167 | O26: 54335
A27: 6 | B27: Intermediate | C27: 2396943.95 | D27: 2304114.099 | E27: 2459917.572 | F27: 2319566.559 | G27: 1801770.281 | H27: 2220684.552 | I27: 2044905.862 | J27: 1829774.842 | K27: 2003890.375 | L27: 2092548.824 | M27: 1988065.594 | N27: 1611494.845 | O27: 25073677.35
A28: 7 | B28: USL | C28: 43187.96759 | D28: 45292.87353 | E28: 51392.99889 | F28: 41289.86476 | G28: 57444.10166 | H28: 50705.31806 | I28: 37551.99069 | J28: 52611.55352 | K28: 48260.04567 | L28: 43896.31107 | M28: 52279.858 | N28: 61572.99979 | O28: 585485.8832
A31: Residential class information | C31: Equipment saturation
B32: Electric space heating | C32: 0.101908867
B33: Electric water heating | C33: 0.1791411043
B34: Air conditioning | C34: 0.4274603905
B35: Baseload | C35: 1
A37: General service >50kW | C37: 2004 kWh (Actual) | D37: 2004 kWh (Weather Corrected)
B38: Weather sensitive load | C38: 25094520.32 | D38: 25582660.12
B39: Non-weather sensitive load | C39: 38546175.98 | D39: 38546175.98
B40: TOTAL | C40: 63640696.29 | D40: 64128836.09
A42: Intermediate | C42: 2004 kWh (Actual) | D42: 2004 kWh (Weather Corrected)
B43: Weather sensitive load | C43: 0 | D43: 0
B44: Non-weather sensitive load | C44: 25073677.35 | D44: 25073677.35
B45: TOTAL | C45: 25073677.35 | D45: 25073677.35
C48: 0.3943156153 | D48: 0.3989260008

Sheet Hourly load shapes by class
A1: ALL UNITS IN GWh | N1: 2025 Load Shape
A2: Year | B2: Month | C2: Day | D2: Hour (EST) | E2: Residential | F2: GS>50 2999 | G2: Street Lighting | H2: GS<50kW | I2: Sentinel Lighting | J2: GS 3000 4999 | K2: USL | L2: TOTAL LDC sales | N2: =E2 -> Residential | O2: GS 50-4999 | P2: =G2 -> Street Lighting | Q2: GS<50kW | R2: Sentinel Lighting | T2: USL | U2: =L2 -> TOTAL LDC sales | Y2: =E2 -> Residential | Z2: GS>50 2999 | AA2: Street Lighting | AB2: GS<50kW | AC2: Sentinel Lighting | AD2: GS 3000 4999 | AE2: USL | AF2: TOTAL LDC sales
A3: 2004 | B3: 1 | C3: 1 | D3: 1 | E3: 0.004407599792 | F3: 0.005745237228 | G3: 0.000263247998 | H3: 0.002659634603 | I3: 9.025806452e-06 | K3: 5.804834354e-05 | L3: 0.01314279377 | N3: =E3*Y$5 -> 0.004545738697 | O3: =F3*Z$5 -> 0.004440489213 | P3: =G3*AA$5 -> 0.0001262282631 | Q3: =H3*AB$5 -> 0.002810824821 | R3: =I3*AC$5 -> 3.79465714e-06 | T3: =K3*AE$5 -> 5.462315016e-05 | U3: =SUM(N3:T3) -> 0.0119816988 | W3: =O3+S3 -> 0.004440489213 | X3: 2004 | Y3: =SUM(E3:E8786)*1000000 -> 45951842.7 | Z3: 89202513.45 | AA3: 1172414.561 | AB3: 22073179.91 | AC3: 79282.68387 | AD3: 0 | AE3: 585485.8832 | AF3: =SUM(Y3:AE3) -> 159064719.2
A4: 2004 | B4: 1 | C4: 1 | D4: 2 | E4: 0.004086463215 | F4: 0.005640223849 | G4: 0.000263247998 | H4: 0.00247153947 | I4: 9.025806452e-06 | K4: 5.804834354e-05 | L4: 0.01252854868 | N4: 0.004214537355 | O4: 0.004359324457 | P4: 0.0001262282631 | Q4: 0.002612037187 | R4: 3.79465714e-06 | T4: 5.462315016e-05 | U4: =SUM(N4:T4) -> 0.01137054507 | X4: 2025 | Y4: ='[1]3.10b LoadForecast'!$J$28 -> 47392022.74 | Z4: ='[1]3.10b LoadForecast'!$J$30 -> 68944550.6 | AA4: ='[1]3.10b LoadForecast'!$J$34 -> 562176.5589 | AB4: ='[1]3.10b LoadForecast'!$J$29 -> 23327957.12 | AC4: ='[1]3.10b LoadForecast'!$J$33 -> 33332.26832 | AD4: ='[1]3.10b LoadForecast'!$I$31 -> 0 | AE4: ='[1]3.10b LoadForecast'!$J$32 -> 550938.7756 | AF4: =SUM(Y4:AE4) -> 140810978.1
A5: 2004 | B5: 1 | C5: 1 | D5: 3 | E5: 0.00382276047 | F5: 0.005561417892 | G5: 0.000263247998 | H5: 0.002474326717 | I5: 9.025806452e-06 | K5: 5.804834354e-05 | L5: 0.01218882723 | N5: 0.003942569883 | O5: 0.004298415397 | P5: 0.0001262282631 | Q5: 0.002614982879 | R5: 3.79465714e-06 | T5: 5.462315016e-05 | U5: 0.01104061423 | X5: Scaling Factor | Y5: =Y4/Y3 -> 1.031341073 | Z5: =Z4/Z3 -> 0.7728991924 | AA5: 0.4795032214 | AB5: 1.056846236 | AC5: 0.420423057 | AE5: 0.9409941236 | AF5: =AF4/AF3 -> 0.8852433071
A6: 2004 | B6: 1 | C6: 1 | D6: 4 | E6: 0.003769058148 | F6: 0.005486977823 | G6: 0.000263247998 | H6: 0.002403820771 | I6: 9.025806452e-06 | K6: 5.804834354e-05 | L6: 0.01199017889 | N6: 0.003887184473 | O6: 0.004240880728 | P6: 0.0001262282631 | Q6: 0.002540468935 | R6: 3.79465714e-06 | T6: 5.462315016e-05 | U6: 0.01085318021
A7: 2004 | B7: 1 | C7: 1 | D7: 5 | E7: 0.003715590795 | F7: 0.005481125643 | G7: 0.000263247998 | H7: 0.002525288896 | I7: 9.025806452e-06 | K7: 5.804834354e-05 | L7: 0.01205232748 | N7: 0.003832041396 | O7: 0.004236357583 | P7: 0.0001262282631 | Q7: 0.002668842065 | R7: 3.79465714e-06 | T7: 5.462315016e-05 | U7: 0.01092188711
A8: 2004 | B8: 1 | C8: 1 | D8: 6 | E8: 0.004047584789 | F8: 0.005564042358 | G8: 0.000263247998 | H8: 0.00272309929 | I8: 9.025806452e-06 | K8: 5.804834354e-05 | L8: 0.01266504858 | N8: 0.004174440437 | O8: 0.004300443845 | P8: 0.0001262282631 | Q8: 0.002877897235 | R8: 3.79465714e-06 | T8: 5.462315016e-05 | U8: 0.01153742759
A9: 2004 | B9: 1 | C9: 1 | D9: 7 | E9: 0.004525953264 | F9: 0.005833269434 | G9: 0.000263247998 | H9: 0.002910025486 | I9: 9.025806452e-06 | K9: 5.804834354e-05 | L9: 0.01359957033 | N9: 0.004667801494 | O9: 0.004508529234 | P9: 0.0001262282631 | Q9: 0.003075449483 | R9: 3.79465714e-06 | T9: 5.462315016e-05 | U9: 0.01243642628
A10: 2004 | B10: 1 | C10: 1 | D10: 8 | E10: 0.005265674785 | F10: 0.006269140452 | G10: 0.0001974359985 | H10: 0.003347455288 | I10: 9.025806452e-06 | K10: 5.804834354e-05 | L10: 0.01514452422 | N10: 0.00543070668 | O10: 0.004845413592 | P10: 9.467119729e-05 | Q10: 0.003537745522 | R10: 3.79465714e-06 | T10: 5.462315016e-05 | U10: 0.0139669548
A11: 2004 | B11: 1 | C11: 1 | D11: 9 | E11: 0.006194195676 | F11: 0.006371793503 | G11: 0 | H11: 0.003642982756 | I11: 9.025806452e-06 | K11: 5.804834354e-05 | L11: 0.01626702028 | N11: 0.006388328412 | O11: 0.004924754052 | P11: 0 | Q11: 0.003850072615 | R11: 3.79465714e-06 | T11: 5.462315016e-05 | U11: 0.01522157289
A12: 2004 | B12: 1 | C12: 1 | D12: 10 | E12: 0.006836375789 | F12: 0.006426169664 | G12: 0 | H12: 0.003622057541 | I12: 9.025806452e-06 | K12: 5.804834354e-05 | L12: 0.01694265134 | N12: 0.007050635138 | O12: 0.004966781344 | P12: 0 | Q12: 0.00382795788 | R12: 3.79465714e-06 | T12: 5.462315016e-05 | U12: 0.01590379217
A13: 2004 | B13: 1 | C13: 1 | D13: 11 | E13: 0.006872940236 | F13: 0.006566644488 | G13: 0 | H13: 0.003994827062 | I13: 9.025806452e-06 | K13: 5.804834354e-05 | L13: 0.01749246013 | N13: 0.007088345554 | O13: 0.005075354222 | P13: 0 | Q13: 0.004221917946 | R13: 3.79465714e-06 | T13: 5.462315016e-05 | U13: 0.01644403553
A14: 2004 | B14: 1 | C14: 1 | D14: 12 | E14: 0.006990407154 | F14: 0.006624700756 | G14: 0 | H14: 0.00401375717 | I14: 9.025806452e-06 | K14: 5.804834354e-05 | L14: 0.01768691342 | N14: 0.007209494012 | O14: 0.005120225864 | P14: 0 | Q14: 0.004241924158 | R14: 3.79465714e-06 | T14: 5.462315016e-05 | U14: 0.01663006184
A15: 2004 | B15: 1 | C15: 1 | D15: 13 | E15: 0.007003870986 | F15: 0.006558775155 | G15: 0 | H15: 0.003782545107 | I15: 9.025806452e-06 | K15: 5.804834354e-05 | L15: 0.01740323959 | N15: 0.007223379814 | O15: 0.005069272021 | P15: 0 | Q15: 0.00399756856 | R15: 3.79465714e-06 | T15: 5.462315016e-05 | U15: 0.0163486382
A16: 2004 | B16: 1 | C16: 1 | D16: 14 | E16: 0.006755260543 | F16: 0.006595745365 | G16: 0 | H16: 0.003880563754 | I16: 9.025806452e-06 | K16: 5.804834354e-05 | L16: 0.01728961801 | N16: 0.006966977653 | O16: 0.005097846266 | P16: 0 | Q16: 0.004101159198 | R16: 3.79465714e-06 | T16: 5.462315016e-05 | U16: 0.01622440092
A17: 2004 | B17: 1 | C17: 1 | D17: 15 | E17: 0.006608868904 | F17: 0.006548970146 | G17: 0 | H17: 0.003874319811 | I17: 9.025806452e-06 | K17: 5.804834354e-05 | L17: 0.0170902072 | N17: 0.006815997943 | O17: 0.005061693737 | P17: 0 | Q17: 0.004094560311 | R17: 3.79465714e-06 | T17: 5.462315016e-05 | U17: 0.0160306698
A18: 2004 | B18: 1 | C18: 1 | D18: 16 | E18: 0.006758449599 | F18: 0.006482484967 | G18: 0 | H18: 0.003392022953 | I18: 9.025806452e-06 | K18: 5.804834354e-05 | L18: 0.01669100586 | N18: 0.006970266658 | O18: 0.005010307396 | P18: 0 | Q18: 0.003584846691 | R18: 3.79465714e-06 | T18: 5.462315016e-05 | U18: 0.01562383855
A19: 2004 | B19: 1 | C19: 1 | D19: 17 | E19: 0.007454071706 | F19: 0.006692800037 | G19: 6.58119995e-05 | H19: 0.003716282148 | I19: 9.025806452e-06 | K19: 5.804834354e-05 | L19: 0.01798927068 | N19: 0.007687690308 | O19: 0.005172859743 | P19: 3.155706576e-05 | Q19: 0.003927538801 | R19: 3.79465714e-06 | T19: 5.462315016e-05 | U19: 0.01687806372
A20: 2004 | B20: 1 | C20: 1 | D20: 18 | E20: 0.008581269984 | F20: 0.006803162566 | G20: 0.000263247998 | H20: 0.003859505124 | I20: 9.025806452e-06 | K20: 5.804834354e-05 | L20: 0.01957425982 | N20: 0.008850216189 | O20: 0.005258158853 | P20: 0.0001262282631 | Q20: 0.004078903465 | R20: 3.79465714e-06 | T20: 5.462315016e-05 | U20: 0.01837192458
A21: 2004 | B21: 1 | C21: 1 | D21: 19 | E21: 0.008882603383 | F21: 0.006637821813 | G21: 0.000263247998 | H21: 0.003440221683 | I21: 9.025806452e-06 | K21: 5.804834354e-05 | L21: 0.01929096903 | N21: 0.0091609937 | O21: 0.005130367119 | P21: 0.0001262282631 | Q21: 0.003635785338 | R21: 3.79465714e-06 | T21: 5.462315016e-05 | U21: 0.01811179223
A22: 2004 | B22: 1 | C22: 1 | D22: 20 | E22: 0.008215732618 | F22: 0.006671585784 | G22: 0.000263247998 | H22: 0.003534576905 | I22: 9.025806452e-06 | K22: 5.804834354e-05 | L22: 0.01875221746 | N22: 0.00847322249 | O22: 0.005156463264 | P22: 0.0001262282631 | Q22: 0.0037355043 | R22: 3.79465714e-06 | T22: 5.462315016e-05 | U22: 0.01754983612
A23: 2004 | B23: 1 | C23: 1 | D23: 21 | E23: 0.007630023352 | F23: 0.006928141803 | G23: 0.000263247998 | H23: 0.003417248191 | I23: 9.025806452e-06 | K23: 5.804834354e-05 | L23: 0.01830573549 | N23: 0.007869156467 | O23: 0.005354755204 | P23: 0.0001262282631 | Q23: 0.003611505889 | R23: 3.79465714e-06 | T23: 5.462315016e-05 | U23: 0.01702006363
A24: 2004 | B24: 1 | C24: 1 | D24: 22 | E24: 0.007203027167 | F24: 0.006844156394 | G24: 0.000263247998 | H24: 0.00281641152 | I24: 9.025806452e-06 | K24: 5.804834354e-05 | L24: 0.01719391723 | N24: 0.007428777763 | O24: 0.005289842949 | P24: 0.0001262282631 | Q24: 0.002976513915 | R24: 3.79465714e-06 | T24: 5.462315016e-05 | U24: 0.0158797807
A25: 2004 | B25: 1 | C25: 1 | D25: 23 | E25: 0.006356941202 | F25: 0.006665728041 | G25: 0.000263247998 | H25: 0.002379089165 | I25: 9.025806452e-06 | K25: 5.804834354e-05 | L25: 0.01573208056 | N25: 0.006556174557 | O25: 0.005151935819 | P25: 0.0001262282631 | Q25: 0.00251433143 | R25: 3.79465714e-06 | T25: 5.462315016e-05 | U25: 0.01440708788
A26: 2004 | B26: 1 | C26: 1 | D26: 24 | E26: 0.004875671403 | F26: 0.006570454361 | G26: 0.000263247998 | H26: 0.002491509208 | I26: 9.025806452e-06 | K26: 5.804834354e-05 | L26: 0.01426795712 | N26: 0.005028480174 | O26: 0.005078298869 | P26: 0.0001262282631 | Q26: 0.002633142129 | R26: 3.79465714e-06 | T26: 5.462315016e-05 | U26: 0.01292456724
A27: 2004 | B27: 1 | C27: 2 | D27: 1 | E27: 0.004016960339 | F27: 0.006609962865 | G27: 0.000263247998 | H27: 0.002094183911 | I27: 9.025806452e-06 | K27: 5.804834354e-05 | L27: 0.01305142926 | N27: 0.004142856184 | O27: 0.00510883496 | P27: 0.0001262282631 | Q27: 0.002213230385 | R27: 3.79465714e-06 | T27: 5.462315016e-05 | U27: 0.0116495676
A28: 2004 | B28: 1 | C28: 2 | D28: 2 | E28: 0.003316536633 | F28: 0.007193390853 | G28: 0.000263247998 | H28: 0.001601203649 | I28: 9.025806452e-06 | K28: 5.804834354e-05 | L28: 0.01244145328 | N28: 0.003420480448 | O28: 0.005559765981 | P28: 0.0001262282631 | Q28: 0.00169222605 | R28: 3.79465714e-06 | T28: 5.462315016e-05 | U28: 0.01085711855
A29: 2004 | B29: 1 | C29: 2 | D29: 3 | E29: 0.003009581265 | F29: 0.007292854807 | G29: 0.000263247998 | H29: 0.001471335694 | I29: 9.025806452e-06 | K29: 5.804834354e-05 | L29: 0.01210409391 | N29: 0.00310390477 | O29: 0.00563664159 | P29: 0.0001262282631 | Q29: 0.00155497559 | R29: 3.79465714e-06 | T29: 5.462315016e-05 | U29: 0.01048016802
A30: 2004 | B30: 1 | C30: 2 | D30: 4 | E30: 0.003000722662 | F30: 0.007111126181 | G30: 0.000263247998 | H30: 0.001464656091 | I30: 9.025806452e-06 | K30: 5.804834354e-05 | L30: 0.01190682708 | N30: 0.003094768529 | O30: 0.005496183682 | P30: 0.0001262282631 | Q30: 0.001547916277 | R30: 3.79465714e-06 | T30: 5.462315016e-05 | U30: 0.01032351456
A31: 2004 | B31: 1 | C31: 2 | D31: 5 | E31: 0.00296165542 | F31: 0.007033102171 | G31: 0.000263247998 | H31: 0.001643463625 | I31: 9.025806452e-06 | K31: 5.804834354e-05 | L31: 0.01196854336 | N31: 0.003054476878 | O31: 0.005435878988 | P31: 0.0001262282631 | Q31: 0.001736888347 | R31: 3.79465714e-06 | T31: 5.462315016e-05 | U31: 0.01041189028
A32: 2004 | B32: 1 | C32: 2 | D32: 6 | E32: 0.003123905275 | F32: 0.00757953082 | G32: 0.000263247998 | H32: 0.001543246688 | I32: 9.025806452e-06 | K32: 5.804834354e-05 | L32: 0.01257700493 | N32: 0.003221811816 | O32: 0.005858213249 | P32: 0.0001262282631 | Q32: 0.001630974454 | R32: 3.79465714e-06 | T32: 5.462315016e-05 | U32: 0.01089564559
A33: 2004 | B33: 1 | C33: 2 | D33: 7 | E33: 0.003671068222 | F33: 0.007976429914 | G33: 0.000263247998 | H33: 0.001527210463 | I33: 9.025806452e-06 | K33: 5.804834354e-05 | L33: 0.01350503075 | N33: 0.003786123437 | O33: 0.006164976239 | P33: 0.0001262282631 | Q33: 0.00161402663 | R33: 3.79465714e-06 | T33: 5.462315016e-05 | U33: 0.01174977238
A34: 2004 | B34: 1 | C34: 2 | D34: 8 | E34: 0.004102093275 | F34: 0.00916725021 | G34: 0.0001974359985 | H34: 0.001507647522 | I34: 9.025806452e-06 | K34: 5.804834354e-05 | L34: 0.0150392447 | N34: 0.004230657278 | O34: 0.007085360284 | P34: 9.467119729e-05 | Q34: 0.00159335161 | R34: 3.79465714e-06 | T34: 5.462315016e-05 | U34: 0.01306245818
A35: 2004 | B35: 1 | C35: 2 | D35: 9 | E35: 0.00472746483 | F35: 0.009828595139 | G35: 0 | H35: 0.00153982798 | I35: 9.025806452e-06 | K35: 5.804834354e-05 | L35: 0.01615393629 | N35: 0.004875628648 | O35: 0.007596513245 | P35: 0 | Q35: 0.001627361406 | R35: 3.79465714e-06 | T35: 5.462315016e-05 | U35: 0.01415792111
A36: 2004 | B36: 1 | C36: 2 | D36: 10 | E36: 0.005133614408 | F36: 0.009955373446 | G36: 0 | H36: 0.001677834444 | I36: 9.025806452e-06 | K36: 5.804834354e-05 | L36: 0.01682487064 | N36: 0.00529450739 | O36: 0.007694500096 | P36: 0 | Q36: 0.001773213018 | R36: 3.79465714e-06 | T36: 5.462315016e-05 | U36: 0.01482063831
A37: 2004 | B37: 1 | C37: 2 | D37: 11 | E37: 0.005360559866 | F37: 0.01013160835 | G37: 0 | H37: 0.001820641453 | I37: 9.025806452e-06 | K37: 5.804834354e-05 | L37: 0.01737085801 | N37: 0.005528565561 | O37: 0.007830711911 | P37: 0 | Q37: 0.001924138068 | R37: 3.79465714e-06 | T37: 5.462315016e-05 | U37: 0.01534183335
A38: 2004 | B38: 1 | C38: 2 | D38: 12 | E38: 0.005533135865 | F38: 0.01015351596 | G38: 0 | H38: 0.001819259602 | I38: 9.025806452e-06 | K38: 5.804834354e-05 | L38: 0.01756395977 | N38: 0.005706550277 | O38: 0.007847644287 | P38: 0 | Q38: 0.001922677663 | R38: 3.79465714e-06 | T38: 5.462315016e-05 | U38: 0.01553529003
A39: 2004 | B39: 1 | C39: 2 | D39: 13 | E39: 0.005476244242 | F39: 0.00972047881 | G39: 0 | H39: 0.002027486375 | I39: 9.025806452e-06 | K39: 5.804834354e-05 | L39: 0.01728225777 | N39: 0.00564787561 | O39: 0.007512950222 | P39: 0 | Q39: 0.002142741345 | R39: 3.79465714e-06 | T39: 5.462315016e-05 | U39: 0.01536198498
A40: 2004 | B40: 1 | C40: 2 | D40: 14 | E40: 0.005374835372 | F40: 0.01013652991 | G40: 0 | H40: 0.001600011545 | I40: 9.025806452e-06 | K40: 5.804834354e-05 | L40: 0.01716942517 | N40: 0.005543288477 | O40: 0.00783451578 | P40: 0 | Q40: 0.001690966179 | R40: 3.79465714e-06 | T40: 5.462315016e-05 | U40: 0.01512718824
A41: 2004 | B41: 1 | C41: 2 | D41: 15 | E41: 0.005131623227 | F41: 0.01009485164 | G41: 0 | H41: 0.001686878471 | I41: 9.025806452e-06 | K41: 5.804834354e-05 | L41: 0.01697140168 | N41: 0.005292453803 | O41: 0.007802302678 | P41: 0 | Q41: 0.001782771163 | R41: 3.79465714e-06 | T41: 5.462315016e-05 | U41: 0.01493594545
A42: 2004 | B42: 1 | C42: 2 | D42: 16 | E42: 0.005313887498 | F42: 0.009451753987 | G42: 0 | H42: 0.001751284502 | I42: 9.025806452e-06 | K42: 5.804834354e-05 | L42: 0.01657497433 | N42: 0.005480430431 | O42: 0.007305253023 | P42: 0 | Q42: 0.001850838435 | R42: 3.79465714e-06 | T42: 5.462315016e-05 | U42: 0.0146949397
A43: 2004 | B43: 1 | C43: 2 | D43: 17 | E43: 0.006350656976 | F43: 0.009188870041 | G43: 6.58119995e-05 | H43: 0.002198570836 | I43: 9.025806452e-06 | K43: 5.804834354e-05 | L43: 0.01786421465 | N43: 0.006549693377 | O43: 0.007102070234 | P43: 3.155706576e-05 | Q43: 0.002323551314 | R43: 3.79465714e-06 | T43: 5.462315016e-05 | U43: 0.0160652898
A44: 2004 | B44: 1 | C44: 2 | D44: 18 | E44: 0.00725900486 | F44: 0.009561847243 | G44: 0.000263247998 | H44: 0.002287010602 | I44: 9.025806452e-06 | K44: 5.804834354e-05 | L44: 0.01943818485 | N44: 0.007486509858 | O44: 0.007390344012 | P44: 0.0001262282631 | Q44: 0.002417018547 | R44: 3.79465714e-06 | T44: 5.462315016e-05 | U44: 0.01747851849
A45: 2004 | B45: 1 | C45: 2 | D45: 19 | E45: 0.007680987822 | F45: 0.009292723343 | G45: 0.000263247998 | H45: 0.001852830222 | I45: 9.025806452e-06 | K45: 5.804834354e-05 | L45: 0.01915686354 | N45: 0.007921718218 | O45: 0.007182338367 | P45: 0.0001262282631 | Q45: 0.001958156647 | R45: 3.79465714e-06 | T45: 5.462315016e-05 | U45: 0.0172468593
A46: 2004 | B46: 1 | C46: 2 | D46: 20 | E46: 0.007301794386 | F46: 0.008968496249 | G46: 0.000263247998 | H46: 0.002021243868 | I46: 9.025806452e-06 | K46: 5.804834354e-05 | L46: 0.01862185665 | N46: 0.007530640454 | O46: 0.006931743508 | P46: 0.0001262282631 | Q46: 0.002136143975 | R46: 3.79465714e-06 | T46: 5.462315016e-05 | U46: 0.01678317401
A47: 2004 | B47: 1 | C47: 2 | D47: 21 | E47: 0.006703516665 | F47: 0.008922800052 | G47: 0.000263247998 | H47: 0.002221840289 | I47: 9.025806452e-06 | K47: 5.804834354e-05 | L47: 0.01817847915 | N47: 0.006913612067 | O47: 0.006896424954 | P47: 0.0001262282631 | Q47: 0.002348143548 | R47: 3.79465714e-06 | T47: 5.462315016e-05 | U47: 0.01634282664
A48: 2004 | B48: 1 | C48: 2 | D48: 22 | E48: 0.006341262312 | F48: 0.008689707684 | G48: 0.000263247998 | H48: 0.001713097737 | I48: 9.025806452e-06 | K48: 5.804834354e-05 | L48: 0.01707438988 | N48: 0.006540004274 | O48: 0.006716268051 | P48: 0.0001262282631 | Q48: 0.001810480895 | R48: 3.79465714e-06 | T48: 5.462315016e-05 | U48: 0.01525139929
A49: 2004 | B49: 1 | C49: 2 | D49: 23 | E49: 0.005685770096 | F49: 0.008085057799 | G49: 0.000263247998 | H49: 0.001521566111 | I49: 9.025806452e-06 | K49: 5.804834354e-05 | L49: 0.01562271615 | N49: 0.005863968228 | O49: 0.006248934643 | P49: 0.0001262282631 | Q49: 0.001608061417 | R49: 3.79465714e-06 | T49: 5.462315016e-05 | U49: 0.01390561036
A50: 2004 | B50: 1 | C50: 2 | D50: 24 | E50: 0.005214092263 | F50: 0.007224212667 | G50: 0.000263247998 | H50: 0.001400144274 | I50: 9.025806452e-06 | K50: 5.804834354e-05 | L50: 0.01416877135 | N50: 0.005377507507 | O50: 0.005583588136 | P50: 0.0001262282631 | Q50: 0.001479737207 | R50: 3.79465714e-06 | T50: 5.462315016e-05 | U50: 0.01262547892
A51: 2004 | B51: 1 | C51: 3 | D51: 1 | E51: 0.003971139436 | F51: 0.00706705979 | G51: 0.000263247998 | H51: 0.002060951206 | I51: 9.025806452e-06 | K51: 5.804834354e-05 | L51: 0.01342947258 | N51: 0.004095599205 | O51: 0.005462124804 | P51: 0.0001262282631 | Q51: 0.002178108525 | R51: 3.79465714e-06 | T51: 5.462315016e-05 | U51: 0.01192047861
A52: 2004 | B52: 1 | C52: 3 | D52: 2 | E52: 0.003822071859 | F52: 0.006924240689 | G52: 0.000263247998 | H52: 0.002172462325 | I52: 9.025806452e-06 | K52: 5.804834354e-05 | L52: 0.01324909702 | N52: 0.00394185969 | O52: 0.005351740036 | P52: 0.0001262282631 | Q52: 0.002295958631 | R52: 3.79465714e-06 | T52: 5.462315016e-05 | U52: 0.01177420443
A53: 2004 | B53: 1 | C53: 3 | D53: 3 | E53: 0.00344443471 | F53: 0.006997617262 | G53: 0.000263247998 | H53: 0.001934840659 | I53: 9.025806452e-06 | K53: 5.804834354e-05 | L53: 0.01270721478 | N53: 0.003552386988 | O53: 0.00540845273 | P53: 0.0001262282631 | Q53: 0.002044829069 | R53: 3.79465714e-06 | T53: 5.462315016e-05 | U53: 0.01119031486
A54: 2004 | B54: 1 | C54: 3 | D54: 4 | E54: 0.003388995336 | F54: 0.006749587754 | G54: 0.000263247998 | H54: 0.002076463945 | I54: 9.025806452e-06 | K54: 5.804834354e-05 | L54: 0.01254536918 | N54: 0.003495210084 | O54: 0.005216750924 | P54: 0.0001262282631 | Q54: 0.002194503105 | R54: 3.79465714e-06 | T54: 5.462315016e-05 | U54: 0.01109111018
A55: 2004 | B55: 1 | C55: 3 | D55: 5 | E55: 0.003411702509 | F55: 0.006548299204 | G55: 0.000263247998 | H55: 0.002076558895 | I55: 9.025806452e-06 | K55: 5.804834354e-05 | L55: 0.01236688276 | N55: 0.003518628925 | O55: 0.005061175166 | P55: 0.0001262282631 | Q55: 0.002194603453 | R55: 3.79465714e-06 | T55: 5.462315016e-05 | U55: 0.01095905361
A56: 2004 | B56: 1 | C56: 3 | D56: 6 | E56: 0.003638130181 | F56: 0.006826867441 | G56: 0.000263247998 | H56: 0.002198151082 | I56: 9.025806452e-06 | K56: 5.804834354e-05 | L56: 0.01299347085 | N56: 0.003752153083 | O56: 0.005276480332 | P56: 0.0001262282631 | Q56: 0.002323107698 | R56: 3.79465714e-06 | T56: 5.462315016e-05 | U56: 0.01153638718
A57: 2004 | B57: 1 | C57: 3 | D57: 7 | E57: 0.00403521497 | F57: 0.007161354274 | G57: 0.000263247998 | H57: 0.002490598392 | I57: 9.025806452e-06 | K57: 5.804834354e-05 | L57: 0.01401748978 | N57: 0.004161682935 | O57: 0.005535004935 | P57: 0.0001262282631 | Q57: 0.002632179536 | R57: 3.79465714e-06 | T57: 5.462315016e-05 | U57: 0.01251351348
A58: 2004 | B58: 1 | C58: 3 | D58: 8 | E58: 0.004720537606 | F58: 0.007743386864 | G58: 0.0001974359985 | H58: 0.002403438696 | I58: 9.025806452e-06 | K58: 5.804834354e-05 | L58: 0.01512961686 | N58: 0.004868484318 | O58: 0.005984857453 | P58: 9.467119729e-05 | Q58: 0.00254006514 | R58: 3.79465714e-06 | T58: 5.462315016e-05 | U58: 0.01354649592
A59: 2004 | B59: 1 | C59: 3 | D59: 9 | E59: 0.005192006673 | F59: 0.008154416432 | G59: 0 | H59: 0.002552528482 | I59: 9.025806452e-06 | K59: 5.804834354e-05 | L59: 0.01595699993 | N59: 0.005354729731 | O59: 0.006302541874 | P59: 0 | Q59: 0.00269763012 | R59: 3.79465714e-06 | T59: 5.462315016e-05 | U59: 0.01441331953
A60: 2004 | B60: 1 | C60: 3 | D60: 10 | E60: 0.005743779105 | F60: 0.00851898653 | G60: 0 | H60: 0.002887469555 | I60: 9.025806452e-06 | K60: 5.804834354e-05 | L60: 0.01720828353 | N60: 0.005923795302 | O60: 0.006584317809 | P60: 0 | Q60: 0.003051611332 | R60: 3.79465714e-06 | T60: 5.462315016e-05 | U60: 0.01561814225
A61: 2004 | B61: 1 | C61: 3 | D61: 11 | E61: 0.005945211782 | F61: 0.00847985639 | G61: 0 | H61: 0.002943359322 | I61: 9.025806452e-06 | K61: 5.804834354e-05 | L61: 0.01742647584 | N61: 0.006131541095 | O61: 0.006554074155 | P61: 0 | Q61: 0.003110678222 | R61: 3.79465714e-06 | T61: 5.462315016e-05 | U61: 0.01585471128
A62: 2004 | B62: 1 | C62: 3 | D62: 12 | E62: 0.006159125493 | F62: 0.008729708552 | G62: 0 | H62: 0.002714798008 | I62: 9.025806452e-06 | K62: 5.804834354e-05 | L62: 0.0176616804 | N62: 0.006352159092 | O62: 0.00674718469 | P62: 0 | Q62: 0.002869124057 | R62: 3.79465714e-06 | T62: 5.462315016e-05 | U62: 0.01602688565
A63: 2004 | B63: 1 | C63: 3 | D63: 13 | E63: 0.006338584283 | F63: 0.008160472417 | G63: 0 | H63: 0.00252979543 | I63: 9.025806452e-06 | K63: 5.804834354e-05 | L63: 0.01708690047 | N63: 0.006537242313 | O63: 0.006307222541 | P63: 0 | Q63: 0.002673604779 | R63: 3.79465714e-06 | T63: 5.462315016e-05 | U63: 0.01557648744
A64: 2004 | B64: 1 | C64: 3 | D64: 14 | E64: 0.005875513983 | F64: 0.008444689207 | G64: 0 | H64: 0.002554743234 | I64: 9.025806452e-06 | K64: 5.804834354e-05 | L64: 0.01693299477 | N64: 0.006059658892 | O64: 0.006526893468 | P64: 0 | Q64: 0.002699970772 | R64: 3.79465714e-06 | T64: 5.462315016e-05 | U64: 0.01534494094
A65: 2004 | B65: 1 | C65: 3 | D65: 15 | E65: 0.005747854943 | F65: 0.008157568988 | G65: 0 | H65: 0.002798598724 | I65: 9.025806452e-06 | K65: 5.804834354e-05 | L65: 0.016762071 | N65: 0.005927998882 | O65: 0.006304978483 | P65: 0 | Q65: 0.002957688529 | R65: 3.79465714e-06 | T65: 5.462315016e-05 | U65: 0.0152490837
A66: 2004 | B66: 1 | C66: 3 | D66: 16 | E66: 0.005816883298 | F66: 0.008048870002 | G66: 0 | H66: 0.002661676772 | I66: 9.025806452e-06 | K66: 5.804834354e-05 | L66: 0.01658547842 | N66: 0.005999190659 | O66: 0.006220965124 | P66: 0 | Q66: 0.002812983079 | R66: 3.79465714e-06 | T66: 5.462315016e-05 | U66: 0.01509155667
A67: 2004 | B67: 1 | C67: 3 | D67: 17 | E67: 0.006516460229 | F67: 0.007860332303 | G67: 6.58119995e-05 | H67: 0.002518570817 | I67: 9.025806452e-06 | K67: 5.804834354e-05 | L67: 0.01702148014 | N67: =E67*Y$5 -> 0.006720693082 | O67: =F67*Z$5 -> 0.006075244489 | P67: =G67*AA$5 -> 3.155706576e-05 | Q67: =H67*AB$5 -> 0.002661742089 | R67: =I67*AC$5 -> 3.79465714e-06 | T67: =K67*AE$5 -> 5.462315016e-05 | U67: 0.01554765453
A68: 2004 | B68: 1 | C68: 3 | D68: 18 | E68: 0.007549539491 | F68: 0.008104978233 | G68: 0.000263247998 | H68: 0.002805985665 | I68: 9.025806452e-06 | K68: 5.804834354e-05 | L68: 0.01879082554 | N68: 0.007786150155 | O68: 0.006264331131 | P68: 0.0001262282631 | Q68: 0.002965495389 | R68: 3.79465714e-06 | T68: 5.462315016e-05 | U68: =SUM(N68:T68) -> 0.01720062275
A69: 2004 | B69: 1 | C69: 3 | D69: 19 | E69: 0.007801839574 | F69: 0.007721845703 | G69: 0.000263247998 | H69: 0.002590813821 | I69: 9.025806452e-06 | K69: 5.804834354e-05 | L69: 0.01844482125 | N69: 0.008046357594 | O69: 0.005968208307 | P69: 0.0001262282631 | Q69: 0.002738091836 | R69: 3.79465714e-06 | T69: 5.462315016e-05 | U69: 0.01693730381
A70: 2004 | B70: 1 | C70: 3 | D70: 20 | E70: 0.007501527504 | F70: 0.00769200927 | G70: 0.000263247998 | H70: 0.002397610204 | I70: 9.025806452e-06 | K70: 5.804834354e-05 | L70: 0.01792146913 | N70: 0.007736633422 | O70: 0.005945147752 | P70: 0.0001262282631 | Q70: 0.002533905321 | R70: 3.79465714e-06 | T70: 5.462315016e-05 | U70: 0.01640033257
A71: 2004 | B71: 1 | C71: 3 | D71: 21 | E71: 0.006812934468 | F71: 0.007858878234 | G71: 0.000263247998 | H71: 0.00234606406 | I71: 9.025806452e-06 | K71: 5.804834354e-05 | L71: 0.01734819891 | N71: 0.007026459142 | O71: 0.00607412064 | P71: 0.0001262282631 | Q71: 0.002479428972 | R71: 3.79465714e-06 | T71: 5.462315016e-05 | U71: 0.01576465482
A72: 2004 | B72: 1 | C72: 3 | D72: 22 | E72: 0.006425306364 | F72: 0.007203649761 | G72: 0.000263247998 | H72: 0.002415194521 | I72: 9.025806452e-06 | K72: 5.804834354e-05 | L72: 0.01637447279 | N72: 0.006626682357 | O72: 0.005567695083 | P72: 0.0001262282631 | Q72: 0.002552489239 | R72: 3.79465714e-06 | T72: 5.462315016e-05 | U72: 0.01493151275
A73: 2004 | B73: 1 | C73: 3 | D73: 23 | E73: 0.005993256274 | F73: 0.007001401096 | G73: 0.000263247998 | H73: 0.00229017633 | I73: 9.025806452e-06 | K73: 5.804834354e-05 | L73: 0.01561515585 | N73: 0.006181091353 | O73: 0.005411377253 | P73: 0.0001262282631 | Q73: 0.002420364235 | R73: 3.79465714e-06 | T73: 5.462315016e-05 | U73: 0.01419747891
A74: 2004 | B74: 1 | C74: 3 | D74: 24 | E74: 0.005043738879 | F74: 0.00686031323 | G74: 0.000263247998 | H74: 0.002334453169 | I74: 9.025806452e-06 | K74: 5.804834354e-05 | L74: 0.01456882743 | N74: 0.005201815065 | O74: 0.005302330555 | P74: 0.0001262282631 | Q74: 0.002467158046 | R74: 3.79465714e-06 | T74: 5.462315016e-05 | U74: 0.01315594974
A75: 2004 | B75: 1 | C75: 4 | D75: 1 | E75: 0.004336156001 | F75: 0.006818469786 | G75: 0.000263247998 | H75: 0.002448161599 | I75: 9.025806452e-06 | K75: 5.804834354e-05 | L75: 0.01393310953 | N75: 0.004472055781 | O75: 0.005269989791 | P75: 0.0001262282631 | Q75: 0.002587330372 | R75: 3.79465714e-06 | T75: 5.462315016e-05 | U75: 0.01251402201
A76: 2004 | B76: 1 | C76: 4 | D76: 2 | E76: 0.003907022052 | F76: 0.007277355739 | G76: 0.000263247998 | H76: 0.002228962768 | I76: 9.025806452e-06 | K76: 5.804834354e-05 | L76: 0.01374366271 | N76: 0.004029472314 | O76: 0.005624662374 | P76: 0.0001262282631 | Q76: 0.002355670912 | R76: 3.79465714e-06 | T76: 5.462315016e-05 | U76: 0.01219445167
A77: 2004 | B77: 1 | C77: 4 | D77: 3 | E77: 0.00367155119 | F77: 0.007224803273 | G77: 0.000263247998 | H77: 0.002169932025 | I77: 9.025806452e-06 | K77: 5.804834354e-05 | L77: 0.01339660864 | N77: 0.003786621542 | O77: 0.005584044615 | P77: 0.0001262282631 | Q77: 0.002293284494 | R77: 3.79465714e-06 | T77: 5.462315016e-05 | U77: 0.01184859672
A78: 2004 | B78: 1 | C78: 4 | D78: 4 | E78: 0.003618436274 | F78: 0.007183837047 | G78: 0.000263247998 | H78: 0.002138620855 | I78: 9.025806452e-06 | K78: 5.804834354e-05 | L78: 0.01327121632 | N78: 0.003731841947 | O78: 0.005552381852 | P78: 0.0001262282631 | Q78: 0.002260193402 | R78: 3.79465714e-06 | T78: 5.462315016e-05 | U78: 0.01172906327
A79: 2004 | B79: 1 | C79: 4 | D79: 5 | E79: 0.003574119284 | F79: 0.006821148098 | G79: 0.000263247998 | H79: 0.002272719258 | I79: 9.025806452e-06 | K79: 5.804834354e-05 | L79: 0.01299830879 | N79: 0.003686136016 | O79: 0.005272059856 | P79: 0.0001262282631 | Q79: 0.002401914794 | R79: 3.79465714e-06 | T79: 5.462315016e-05 | U79: 0.01154475674
A80: 2004 | B80: 1 | C80: 4 | D80: 6 | E80: 0.003783374791 | F80: 0.007202138066 | G80: 0.000263247998 | H80: 0.002211209599 | I80: 9.025806452e-06 | K80: 5.804834354e-05 | L80: 0.0135270446 | N80: 0.003901949815 | O80: 0.005566526694 | P80: 0.0001262282631 | Q80: 0.002336908542 | R80: 3.79465714e-06 | T80: 5.462315016e-05 | U80: 0.01199003112
A81: 2004 | B81: 1 | C81: 4 | D81: 7 | E81: 0.004191368177 | F81: 0.007445815891 | G81: 0.000263247998 | H81: 0.002266074898 | I81: 9.025806452e-06 | K81: 5.804834354e-05 | L81: 0.01423358111 | N81: 0.004322730151 | O81: 0.005754865089 | P81: 0.0001262282631 | Q81: 0.002394892727 | R81: 3.79465714e-06 | T81: 5.462315016e-05 | U81: 0.01265713404
A82: 2004 | B82: 1 | C82: 4 | D82: 8 | E82: 0.004595895085 | F82: 0.007792059161 | G82: 0.0001974359985 | H82: 0.002214208877 | I82: 9.025806452e-06 | K82: 5.804834354e-05 | L82: 0.01486441682 | N82: 0.004739935366 | O82: 0.006022476232 | P82: 9.467119729e-05 | Q82: 0.002340078318 | R82: 3.79465714e-06 | T82: 5.462315016e-05 | U82: 0.01325557892
A83: 2004 | B83: 1 | C83: 4 | D83: 9 | E83: 0.005546759746 | F83: 0.007838206141 | G83: 0 | H83: 0.002387258488 | I83: 9.025806452e-06 | K83: 5.804834354e-05 | L83: 0.01583027272 | N83: 0.005720601145 | O83: 0.006058143196 | P83: 0 | Q83: 0.002522965148 | R83: 3.79465714e-06 | T83: 5.462315016e-05 | U83: 0.0143601273
A84: 2004 | B84: 1 | C84: 4 | D84: 10 | E84: 0.006049951569 | F84: 0.008300151648 | G84: 0 | H84: 0.002268799322 | I84: 9.025806452e-06 | K84: 5.804834354e-05 | L84: 0.01667695088 | N84: 0.00623956354 | O84: 0.006415180505 | P84: 0 | Q84: 0.002397772024 | R84: 3.79465714e-06 | T84: 5.462315016e-05 | U84: 0.01511093388
A85: 2004 | B85: 1 | C85: 4 | D85: 11 | E85: 0.006028359097 | F85: 0.008540471379 | G85: 0 | H85: 0.002576479374 | I85: 9.025806452e-06 | K85: 5.804834354e-05 | L85: 0.01720335819 | N85: 0.006217294337 | O85: 0.006600923432 | P85: 0 | Q85: 0.002722942529 | R85: 3.79465714e-06 | T85: 5.462315016e-05 | U85: 0.01559957811
A86: 2004 | B86: 1 | C86: 4 | D86: 12 | E86: 0.006156227257 | F86: 0.008578256226 | G86: 0 | H86: 0.002598717982 | I86: 9.025806452e-06 | K86: 5.804834354e-05 | L86: 0.01739124981 | N86: 0.006349170022 | O86: 0.006630127309 | P86: 0 | Q86: 0.002746445318 | R86: 3.79465714e-06 | T86: 5.462315016e-05 | U86: 0.01578416046
A87: 2004 | B87: 1 | C87: 4 | D87: 13 | E87: 0.006157542262 | F87: 0.008189316362 | G87: 0 | H87: 0.002562809808 | I87: 9.025806452e-06 | K87: 5.804834354e-05 | L87: 0.01696771678 | N87: 0.00635052624 | O87: 0.006329516002 | P87: 0 | Q87: 0.0027084959 | R87: 3.79465714e-06 | T87: 5.462315016e-05 | U87: 0.01544695595
A88: 2004 | B88: 1 | C88: 4 | D88: 14 | E88: 0.005969398485 | F88: 0.008604995836 | G88: 0 | H88: 0.002633805087 | I88: 9.025806452e-06 | K88: 5.804834354e-05 | L88: 0.01726624775 | N88: 0.006156485836 | O88: 0.006650794332 | P88: 0 | Q88: 0.002783526993 | R88: 3.79465714e-06 | T88: 5.462315016e-05 | U88: 0.01564922497
A89: 2004 | B89: 1 | C89: 4 | D89: 15 | E89: 0.005923513955 | F89: 0.008406520569 | G89: 0 | H89: 0.002497334391 | I89: 9.025806452e-06 | K89: 5.804834354e-05 | L89: 0.01688541726 | N89: 0.006109163235 | O89: 0.006497392959 | P89: 0 | Q89: 0.002639298452 | R89: 3.79465714e-06 | T89: 5.462315016e-05 | U89: 0.01530427245
A90: 2004 | B90: 1 | C90: 4 | D90: 16 | E90: 0.00624000216 | F90: 0.008477200532 | G90: 0 | H90: 0.002306210663 | I90: 9.025806452e-06 | K90: 5.804834354e-05 | L90: 0.0170814617 | N90: 0.006435570521 | O90: 0.006552021445 | P90: 0 | Q90: 0.00243731006 | R90: 3.79465714e-06 | T90: 5.462315016e-05 | U90: 0.01548331983
A91: 2004 | B91: 1 | C91: 4 | D91: 17 | E91: 0.006789183807 | F91: 0.008078222518 | G91: 6.58119995e-05 | H91: 0.002563491781 | I91: 9.025806452e-06 | K91: 5.804834354e-05 | L91: 0.0175570149 | N91: 0.007001964109 | O91: 0.00624365166 | P91: 3.155706576e-05 | Q91: 0.00270921664 | R91: 3.79465714e-06 | T91: 5.462315016e-05 | U91: 0.01604480728
A92: 2004 | B92: 1 | C92: 4 | D92: 18 | E92: 0.008029054805 | F92: 0.008470252967 | G92: 0.000263247998 | H92: 0.002416080533 | I92: 9.025806452e-06 | K92: 5.804834354e-05 | L92: 0.01924571045 | N92: 0.008280693994 | O92: 0.006546651677 | P92: 0.0001262282631 | Q92: 0.002553425618 | R92: 3.79465714e-06 | T92: 5.462315016e-05 | U92: 0.01756541736
A93: 2004 | B93: 1 | C93: 4 | D93: 19 | E93: 0.008425337185 | F93: 0.008381797909 | G93: 0.000263247998 | H93: 0.002449486725 | I93: 9.025806452e-06 | K93: 5.804834354e-05 | L93: 0.01958694397 | N93: 0.008689396289 | O93: 0.006478284835 | P93: 0.0001262282631 | Q93: 0.002588730826 | R93: 3.79465714e-06 | T93: 5.462315016e-05 | U93: 0.01794105802
A94: 2004 | B94: 1 | C94: 4 | D94: 20 | E94: 0.007836373838 | F94: 0.007870595082 | G94: 0.000263247998 | H94: 0.002699093528 | I94: 9.025806452e-06 | K94: 5.804834354e-05 | L94: 0.0187363846 | N94: 0.008081974198 | O94: 0.006083176582 | P94: 0.0001262282631 | Q94: 0.002852526837 | R94: 3.79465714e-06 | T94: 5.462315016e-05 | U94: 0.01720232369
A95: 2004 | B95: 1 | C95: 4 | D95: 21 | E95: 0.007391520517 | F95: 0.008015885249 | G95: 0.000263247998 | H95: 0.002618990991 | I95: 9.025806452e-06 | K95: 5.804834354e-05 | L95: 0.0183567189 | N95: 0.007623178698 | O95: 0.006195471235 | P95: 0.0001262282631 | Q95: 0.002767870771 | R95: 3.79465714e-06 | T95: 5.462315016e-05 | U95: 0.01677116677
A96: 2004 | B96: 1 | C96: 4 | D96: 22 | E96: 0.007107774193 | F96: 0.008167222754 | G96: 0.000263247998 | H96: 0.002248284921 | I96: 9.025806452e-06 | K96: 5.804834354e-05 | L96: 0.01785360402 | N96: 0.007330539459 | O96: 0.00631243987 | P96: 0.0001262282631 | Q96: 0.002376091457 | R96: 3.79465714e-06 | T96: 5.462315016e-05 | U96: 0.01620371686
A97: 2004 | B97: 1 | C97: 4 | D97: 23 | E97: 0.006293501435 | F97: 0.007862896351 | G97: 0.000263247998 | H97: 0.001868019492 | I97: 9.025806452e-06 | K97: 5.804834354e-05 | L97: 0.01635473943 | N97: 0.00649074652 | O97: 0.006077226239 | P97: 0.0001262282631 | Q97: 0.00197420937 | R97: 3.79465714e-06 | T97: 5.462315016e-05 | U97: 0.0147268282
A98: 2004 | B98: 1 | C98: 4 | D98: 24 | E98: 0.004583600672 | F98: 0.008397887746 | G98: 0.000263247998 | H98: 0.001931496143 | I98: 9.025806452e-06 | K98: 5.804834354e-05 | L98: 0.01524330671 | N98: 0.004727255633 | O98: 0.006490720657 | P98: 0.0001262282631 | Q98: 0.002041294429 | R98: 3.79465714e-06 | T98: 5.462315016e-05 | U98: 0.01344391679
A99: 2004 | B99: 1 | C99: 5 | D99: 1 | E99: 0.004538159346 | F99: 0.008796952639 | G99: 0.000263247998 | H99: 0.002252873767 | I99: 9.025806452e-06 | K99: 5.804834354e-05 | L99: 0.0159183079 | N99: 0.004680390127 | O99: 0.00679915759 | P99: 0.0001262282631 | Q99: 0.002380941161 | R99: 3.79465714e-06 | T99: 5.462315016e-05 | U99: 0.01404513495
A100: 2004 | B100: 1 | C100: 5 | D100: 2 | E100: 0.004234192224 | F100: 0.009346723225 | G100: 0.000263247998 | H100: 0.002439153634 | I100: 9.025806452e-06 | K100: 5.804834354e-05 | L100: 0.01635039123 | N100: 0.00436689635 | O100: 0.007224074832 | P100: 0.0001262282631 | Q100: 0.002577810338 | R100: 3.79465714e-06 | T100: 5.462315016e-05 | U100: 0.01435342759
A101: 2004 | B101: 1 | C101: 5 | D101: 3 | E101: 0.004114019735 | F101: 0.009110196847 | G101: 0.000263247998 | H101: 0.0025037266 | I101: 9.025806452e-06 | K101: 5.804834354e-05 | L101: 0.01605826533 | N101: 0.004242957526 | O101: 0.007041263786 | P101: 0.0001262282631 | Q101: 0.002646054034 | R101: 3.79465714e-06 | T101: 5.462315016e-05 | U101: 0.01411492142
A102: 2004 | B102: 1 | C102: 5 | D102: 4 | E102: 0.004354895766 | F102: 0.008948415601 | G102: 0.000263247998 | H102: 0.002584943696 | I102: 9.025806452e-06 | K102: 5.804834354e-05 | L102: 0.01621857721 | N102: 0.00449138287 | O102: 0.006916223191 | P102: 0.0001262282631 | Q102: 0.002731888016 | R102: 3.79465714e-06 | T102: 5.462315016e-05 | U102: 0.01432414015
A103: 2004 | B103: 1 | C103: 5 | D103: 5 | E103: 0.004366169035 | F103: 0.008795912992 | G103: 0.000263247998 | H103: 0.002646780266 | I103: 9.025806452e-06 | K103: 5.804834354e-05 | L103: 0.01613918444 | N103: 0.004503009455 | O103: 0.006798354048 | P103: 0.0001262282631 | Q103: 0.002797239763 | R103: 3.79465714e-06 | T103: 5.462315016e-05 | U103: 0.01428324934
A104: 2004 | B104: 1 | C104: 5 | D104: 6 | E104: 0.00473913891 | F104: 0.009605813823 | G104: 0.000263247998 | H104: 0.002783054664 | I104: 9.025806452e-06 | K104: 5.804834354e-05 | L104: 0.01745832954 | N104: 0.004887668606 | O104: 0.007424325746 | P104: 0.0001262282631 | Q104: 0.002941260847 | R104: 3.79465714e-06 | T104: 5.462315016e-05 | U104: 0.01543790127
A105: 2004 | B105: 1 | C105: 5 | D105: 7 | E105: 0.005552604598 | F105: 0.0105483186 | G105: 0.000263247998 | H105: 0.002572704833 | I105: 9.025806452e-06 | K105: 5.804834354e-05 | L105: 0.01900395018 | N105: 0.005726629181 | O105: 0.008152786925 | P105: 0.0001262282631 | Q105: 0.00271895342 | R105: 3.79465714e-06 | T105: 5.462315016e-05 | U105: 0.0167830156
A106: 2004 | B106: 1 | C106: 5 | D106: 8 | E106: 0.006770312272 | F106: 0.01179539104 | G106: 0.0001974359985 | H106: 0.003037196084 | I106: 9.025806452e-06 | K106: 5.804834354e-05 | L106: 0.02186515309 | N106: 0.006982501119 | O106: 0.009116648208 | P106: 9.467119729e-05 | Q106: 0.003209849251 | R106: 3.79465714e-06 | T106: 5.462315016e-05 | U106: 0.01946208758
A107: 2004 | B107: 1 | C107: 5 | D107: 9 | E107: 0.007008686999 | F107: 0.0127902647 | G107: 0 | H107: 0.002928807958 | I107: 9.025806452e-06 | K107: 5.804834354e-05 | L107: 0.022785808 | N107: 0.007228346766 | O107: 0.009885585261 | P107: 0 | Q107: 0.003095299667 | R107: 3.79465714e-06 | T107: 5.462315016e-05 | U107: 0.0202676495
A108: 2004 | B108: 1 | C108: 5 | D108: 10 | E108: 0.006678247903 | F108: 0.01324751778 | G108: 0 | H108: 0.003687022716 | I108: 9.025806452e-06 | K108: 5.804834354e-05 | L108: 0.02367083675 | N108: 0.006887551355 | O108: 0.0102389958 | P108: 0 | Q108: 0.003896616081 | R108: 3.79465714e-06 | T108: 5.462315016e-05 | U108: 0.02108158104
A109: 2004 | B109: 1 | C109: 5 | D109: 11 | E109: 0.006551402123 | F109: 0.01310810992 | G109: 0 | H109: 0.003679472193 | I109: 9.025806452e-06 | K109: 5.804834354e-05 | L109: 0.02339703258 | N109: 0.006756730092 | O109: 0.01013124757 | P109: 0 | Q109: 0.003888636339 | R109: 3.79465714e-06 | T109: 5.462315016e-05 | U109: 0.02083503181
A110: 2004 | B110: 1 | C110: 5 | D110: 12 | E110: 0.006519231022 | F110: 0.01310475896 | G110: 0 | H110: 0.003572495221 | I110: 9.025806452e-06 | K110: 5.804834354e-05 | L110: 0.02325453355 | N110: 0.006723550714 | O110: 0.01012865762 | P110: 0 | Q110: 0.003775578129 | R110: 3.79465714e-06 | T110: 5.462315016e-05 | U110: 0.02068620427
A111: 2004 | B111: 1 | C111: 5 | D111: 13 | E111: 0.006524453492 | F111: 0.01285644395 | G111: 0 | H111: 0.003247619966 | I111: 9.025806452e-06 | K111: 5.804834354e-05 | L111: 0.02268656575 | N111: 0.006728936862 | O111: 0.009936735143 | P111: 0 | Q111: 0.003432234938 | R111: 3.79465714e-06 | T111: 5.462315016e-05 | U111: 0.02015632475
A112: 2004 | B112: 1 | C112: 5 | D112: 14 | E112: 0.006419099001 | F112: 0.01297945253 | G112: 0 | H112: 0.003466108963 | I112: 9.025806452e-06 | K112: 5.804834354e-05 | L112: 0.02292270883 | N112: 0.006620280449 | O112: 0.01003180837 | P112: 0 | Q112: 0.003663144212 | R112: 3.79465714e-06 | T112: 5.462315016e-05 | U112: 0.02037365084
A113: 2004 | B113: 1 | C113: 5 | D113: 15 | E113: 0.006436969933 | F113: 0.01263304371 | G113: 0 | H113: 0.003411932087 | I113: 9.025806452e-06 | K113: 5.804834354e-05 | L113: 0.02253999407 | N113: 0.006638711475 | O113: 0.009764069278 | P113: 0 | Q113: 0.003605887585 | R113: 3.79465714e-06 | T113: 5.462315016e-05 | U113: 0.02006708614
A114: 2004 | B114: 1 | C114: 5 | D114: 16 | E114: 0.006774095968 | F114: 0.01237942876 | G114: 0 | H114: 0.003077011367 | I114: 9.025806452e-06 | K114: 5.804834354e-05 | L114: 0.02228858444 | N114: 0.006986403401 | O114: 0.009568050493 | P114: 0 | Q114: 0.003251927883 | R114: 3.79465714e-06 | T114: 5.462315016e-05 | U114: 0.01986479958
A115: 2004 | B115: 1 | C115: 5 | D115: 17 | E115: 0.007567624417 | F115: 0.01222393846 | G115: 6.58119995e-05 | H115: 0.00320656871 | I115: 9.025806452e-06 | K115: 5.804834354e-05 | L115: 0.02312424838 | N115: 0.007804801883 | O115: 0.009447872163 | P115: 3.155706576e-05 | Q115: 0.003388850072 | R115: 3.79465714e-06 | T115: 5.462315016e-05 | U115: 0.02073149899
A116: 2004 | B116: 1 | C116: 5 | D116: 18 | E116: 0.008971509362 | F116: 0.01269963175 | G116: 0.000263247998 | H116: 0.003190056884 | I116: 9.025806452e-06 | K116: 5.804834354e-05 | L116: 0.02519152014 | N116: 0.009252686087 | O116: 0.009815535124 | P116: 0.0001262282631 | Q116: 0.003371399611 | R116: 3.79465714e-06 | T116: 5.462315016e-05 | U116: 0.02262426689
A117: 2004 | B117: 1 | C117: 5 | D117: 19 | E117: 0.009081734735 | F117: 0.0126816866 | G117: 0.000263247998 | H117: 0.00343824991 | I117: 9.025806452e-06 | K117: 5.804834354e-05 | L117: 0.02553199339 | N117: 0.009366366042 | O117: 0.009801665331 | P117: 0.0001262282631 | Q117: 0.003633701477 | R117: 3.79465714e-06 | T117: 5.462315016e-05 | U117: 0.02298637892
A118: 2004 | B118: 1 | C118: 5 | D118: 20 | E118: 0.008921226069 | F118: 0.01249376723 | G118: 0.000263247998 | H118: 0.002915390347 | I118: 9.025806452e-06 | K118: 5.804834354e-05 | L118: 0.02466070579 | N118: 0.009200826862 | O118: 0.009656422601 | P118: 0.0001262282631 | Q118: 0.003081119316 | R118: 3.79465714e-06 | T118: 5.462315016e-05 | U118: 0.02212301485
A119: 2004 | B119: 1 | C119: 5 | D119: 21 | E119: 0.008439709505 | F119: 0.01231136033 | G119: 0.000263247998 | H119: 0.003032215459 | I119: 9.025806452e-06 | K119: 5.804834354e-05 | L119: 0.02411360744 | N119: 0.008704219052 | O119: 0.009515440458 | P119: 0.0001262282631 | Q119: 0.003204585495 | R119: 3.79465714e-06 | T119: 5.462315016e-05 | U119: 0.02160889108
A120: 2004 | B120: 1 | C120: 5 | D120: 22 | E120: 0.007738660364 | F120: 0.01212632077 | G120: 0.000263247998 | H120: 0.002829192861 | I120: 9.025806452e-06 | K120: 5.804834354e-05 | L120: 0.02302449614 | N120: 0.00798119828 | O120: 0.009372423528 | P120: 0.0001262282631 | Q120: 0.002990021827 | R120: 3.79465714e-06 | T120: 5.462315016e-05 | U120: 0.02052828971
A121: 2004 | B121: 1 | C121: 5 | D121: 23 | E121: 0.007020763281 | F121: 0.01130420172 | G121: 0.000263247998 | H121: 0.002501946829 | I121: 9.025806452e-06 | K121: 5.804834354e-05 | L121: 0.02115723398 | N121: 0.007240801532 | O121: 0.00873700838 | P121: 0.0001262282631 | Q121: 0.00264417309 | R121: 3.79465714e-06 | T121: 5.462315016e-05 | U121: 0.01880662907
A122: 2004 | B122: 1 | C122: 5 | D122: 24 | E122: 0.005516847862 | F122: 0.0108498031 | G122: 0.000263247998 | H122: 0.002871889674 | I122: 9.025806452e-06 | K122: 5.804834354e-05 | L122: 0.01956886279 | N122: 0.005689751791 | O122: 0.008385804057 | P122: 0.0001262282631 | Q122: 0.003035145793 | R122: 3.79465714e-06 | T122: 5.462315016e-05 | U122: 0.01729534771
A123: 2004 | B123: 1 | C123: 6 | D123: 1 | E123: 0.00464364073 | F123: 0.01036516078 | G123: 0.000263247998 | H123: 0.002745780802 | I123: 9.025806452e-06 | K123: 5.804834354e-05 | L123: 0.01808490446 | N123: 0.004789177411 | O123: 0.008011224394 | P123: 0.0001262282631 | Q123: 0.002901868106 | R123: 3.79465714e-06 | T123: 5.462315016e-05 | U123: 0.01588691598
A124: 2004 | B124: 1 | C124: 6 | D124: 2 | E124: 0.004319478348 | F124: 0.01022649558 | G124: 0.000263247998 | H124: 0.002684118919 | I124: 9.025806452e-06 | K124: 5.804834354e-05 | L124: 0.017560415 | N124: 0.004454855433 | O124: 0.007904050176 | P124: 0.0001262282631 | Q124: 0.002836700978 | R124: 3.79465714e-06 | T124: 5.462315016e-05 | U124: 0.01538025266
A125: 2004 | B125: 1 | C125: 6 | D125: 3 | E125: 0.004303334266 | F125: 0.009679184625 | G125: 0.000263247998 | H125: 0.002709270072 | I125: 9.025806452e-06 | K125: 5.804834354e-05 | L125: 0.01702211111 | N125: 0.004438205378 | O125: 0.00748103398 | P125: 0.0001262282631 | Q125: 0.002863281879 | R125: 3.79465714e-06 | T125: 5.462315016e-05 | U125: 0.01496716731
A126: 2004 | B126: 1 | C126: 6 | D126: 4 | E126: 0.00431116749 | F126: 0.009575118039 | G126: 0.000263247998 | H126: 0.002580867768 | I126: 9.025806452e-06 | K126: 5.804834354e-05 | L126: 0.01679747544 | N126: 0.004446284103 | O126: 0.007400600999 | P126: 0.0001262282631 | Q126: 0.002727580387 | R126: 3.79465714e-06 | T126: 5.462315016e-05 | U126: 0.01475911156
A127: 2004 | B127: 1 | C127: 6 | D127: 5 | E127: 0.00445632362 | F127: 0.0091800098 | G127: 0.000263247998 | H127: 0.002611300988 | I127: 9.025806452e-06 | K127: 5.804834354e-05 | L127: 0.01657795656 | N127: 0.004595989581 | O127: 0.00709522216 | P127: 0.0001262282631 | Q127: 0.002759743621 | R127: 3.79465714e-06 | T127: 5.462315016e-05 | U127: 0.01463560143
A128: 2004 | B128: 1 | C128: 6 | D128: 6 | E128: 0.004835840186 | F128: 0.009901180943 | G128: 0.000263247998 | H128: 0.002798044647 | I128: 9.025806452e-06 | K128: 5.804834354e-05 | L128: 0.01786538792 | N128: 0.004987400603 | O128: 0.007652614754 | P128: 0.0001262282631 | Q128: 0.002957102954 | R128: 3.79465714e-06 | T128: 5.462315016e-05 | U128: 0.01578176438
A129: 2004 | B129: 1 | C129: 6 | D129: 7 | E129: 0.005822033647 | F129: 0.01058728229 | G129: 0.000263247998 | H129: 0.003023633742 | I129: 9.025806452e-06 | K129: 5.804834354e-05 | L129: 0.01976327183 | N129: 0.006004502425 | O129: 0.008182901934 | P129: 0.0001262282631 | Q129: 0.003195515941 | R129: 3.79465714e-06 | T129: 5.462315016e-05 | U129: 0.01756756637
A130: 2004 | B130: 1 | C130: 6 | D130: 8 | E130: 0.006552956119 | F130: 0.01248220121 | G130: 0.0001974359985 | H130: 0.002853436845 | I130: 9.025806452e-06 | K130: 5.804834354e-05 | L130: 0.02215084787 | N130: 0.006758332792 | O130: 0.009647483233 | P130: 9.467119729e-05 | Q130: 0.00301564399 | R130: 3.79465714e-06 | T130: 5.462315016e-05 | U130: 0.01957454902
A131: 2004 | B131: 1 | C131: 6 | D131: 9 | E131: 0.006757671069 | F131: 0.012989855 | G131: 0 | H131: 0.003117426596 | I131: 9.025806452e-06 | K131: 5.804834354e-05 | L131: 0.02292300101 | N131: =E131*Y$5 -> 0.006969463728 | O131: =F131*Z$5 -> 0.01003984844 | P131: =G131*AA$5 -> 0 | Q131: =H131*AB$5 -> 0.003294640565 | R131: =I131*AC$5 -> 3.79465714e-06 | T131: =K131*AE$5 -> 5.462315016e-05 | U131: 0.02036237054
A132: 2004 | B132: 1 | C132: 6 | D132: 10 | E132: 0.006290693666 | F132: 0.01332087739 | G132: 0 | H132: 0.003778892296 | I132: 9.025806452e-06 | K132: 5.804834354e-05 | L132: 0.0234485117 | N132: 0.006487850752 | O132: 0.01029569538 | P132: 0 | Q132: 0.003993708101 | R132: 3.79465714e-06 | T132: 5.462315016e-05 | U132: =SUM(N132:T132) -> 0.02083567204
A133: 2004 | B133: 1 | C133: 6 | D133: 11 | E133: 0.006045736464 | F133: 0.01353366889 | G133: 0 | H133: 0.003391979713 | I133: 9.025806452e-06 | K133: 5.804834354e-05 | L133: 0.02302943341 | N133: 0.006235216329 | O133: 0.01046016175 | P133: 0 | Q133: 0.003584800993 | R133: 3.79465714e-06 | T133: 5.462315016e-05 | U133: 0.02033859688
A134: 2004 | B134: 1 | C134: 6 | D134: 12 | E134: 0.006265428953 | F134: 0.01331870954 | G134: 0 | H134: 0.003166702853 | I134: 9.025806452e-06 | K134: 5.804834354e-05 | L134: 0.02280888969 | N134: 0.006461794216 | O134: 0.01029401985 | P134: 0 | Q134: 0.003346717991 | R134: 3.79465714e-06 | T134: 5.462315016e-05 | U134: 0.02016094986
A135: 2004 | B135: 1 | C135: 6 | D135: 13 | E135: 0.006086059803 | F135: 0.0131296418 | G135: 0 | H135: 0.003167744085 | I135: 9.025806452e-06 | K135: 5.804834354e-05 | L135: 0.02244149403 | N135: 0.006276803444 | O135: 0.01014788955 | P135: 0 | Q135: 0.003347818414 | R135: 3.79465714e-06 | T135: 5.462315016e-05 | U135: 0.01983092921
A136: 2004 | B136: 1 | C136: 6 | D136: 14 | E136: 0.005932308111 | F136: 0.01338137487 | G136: 0 | H136: 0.003326634024 | I136: 9.025806452e-06 | K136: 5.804834354e-05 | L136: 0.02269836535 | N136: 0.00611823301 | O136: 0.01034245383 | P136: 0 | Q136: 0.003515740648 | R136: 3.79465714e-06 | T136: 5.462315016e-05 | U136: 0.02003484529
A137: 2004 | B137: 1 | C137: 6 | D137: 15 | E137: 0.006021732759 | F137: 0.01290988698 | G137: 0 | H137: 0.003312640869 | I137: 9.025806452e-06 | K137: 5.804834354e-05 | L137: 0.02230230895 | N137: 0.006210460322 | O137: 0.009978041222 | P137: 0 | Q137: 0.003500952035 | R137: 3.79465714e-06 | T137: 5.462315016e-05 | U137: 0.01974787139
A138: 2004 | B138: 1 | C138: 6 | D138: 16 | E138: 0.006011530632 | F138: 0.01254540929 | G138: 0 | H138: 0.003223726204 | I138: 9.025806452e-06 | K138: 5.804834354e-05 | L138: 0.02183871447 | N138: 0.00619993845 | O138: 0.009696336705 | P138: 0 | Q138: 0.003406982906 | R138: 3.79465714e-06 | T138: 5.462315016e-05 | U138: 0.01936167587
A139: 2004 | B139: 1 | C139: 6 | D139: 17 | E139: 0.006960251776 | F139: 0.01227645015 | G139: 6.58119995e-05 | H139: 0.003204037807 | I139: 9.025806452e-06 | K139: 5.804834354e-05 | L139: 0.02256685653 | N139: 0.007178393532 | O139: 0.009488458409 | P139: 3.155706576e-05 | Q139: 0.003386175297 | R139: 3.79465714e-06 | T139: 5.462315016e-05 | U139: 0.02014300211
A140: 2004 | B140: 1 | C140: 6 | D140: 18 | E140: 0.008288349246 | F140: 0.01264242098 | G140: 0.000263247998 | H140: 0.003574120408 | I140: 9.025806452e-06 | K140: 5.804834354e-05 | L140: 0.02483521278 | N140: 0.008548115 | O140: 0.009771316965 | P140: 0.0001262282631 | Q140: 0.003777295701 | R140: 3.79465714e-06 | T140: 5.462315016e-05 | U140: 0.02228137374
A141: 2004 | B141: 1 | C141: 6 | D141: 19 | E141: 0.008724273565 | F141: 0.01286097921 | G141: 0.000263247998 | H141: 0.00329880424 | I141: 9.025806452e-06 | K141: 5.804834354e-05 | L141: 0.02521437916 | N141: 0.008997701655 | O141: 0.009940240443 | P141: 0.0001262282631 | Q141: 0.003486328845 | R141: 3.79465714e-06 | T141: 5.462315016e-05 | U141: 0.02260891701
A142: 2004 | B142: 1 | C142: 6 | D142: 20 | E142: 0.008654682236 | F142: 0.01242051817 | G142: 0.000263247998 | H142: 0.00298297854 | I142: 9.025806452e-06 | K142: 5.804834354e-05 | L142: 0.02438850109 | N142: 0.008925929259 | O142: 0.009599808461 | P142: 0.0001262282631 | Q142: 0.003152549643 | R142: 3.79465714e-06 | T142: 5.462315016e-05 | U142: 0.02186293343
A143: 2004 | B143: 1 | C143: 6 | D143: 21 | E143: 0.008480391965 | F143: 0.0120431965 | G143: 0.000263247998 | H143: 0.002966605881 | I143: 9.025806452e-06 | K143: 5.804834354e-05 | L143: 0.0238205165 | N143: 0.008746176545 | O143: 0.009308176852 | P143: 0.0001262282631 | Q143: 0.00313524626 | R143: 3.79465714e-06 | T143: 5.462315016e-05 | U143: 0.02137424573
A144: 2004 | B144: 1 | C144: 6 | D144: 22 | E144: 0.007705842692 | F144: 0.01233004597 | G144: 0.000263247998 | H144: 0.002792169417 | I144: 9.025806452e-06 | K144: 5.804834354e-05 | L144: 0.02315838022 | N144: 0.007947352067 | O144: 0.009529882569 | P144: 0.0001262282631 | Q144: 0.002950893739 | R144: 3.79465714e-06 | T144: 5.462315016e-05 | U144: 0.02061277445
A145: 2004 | B145: 1 | C145: 6 | D145: 23 | E145: 0.006997466554 | F145: 0.01160151781 | G145: 0.000263247998 | H145: 0.002282066811 | I145: 9.025806452e-06 | K145: 5.804834354e-05 | L145: 0.02121137332 | N145: 0.00721677466 | O145: 0.008966803745 | P145: 0.0001262282631 | Q145: 0.002411793721 | R145: 3.79465714e-06 | T145: 5.462315016e-05 | U145: 0.0187800182
A146: 2004 | B146: 1 | C146: 6 | D146: 24 | E146: 0.005426523294 | F146: 0.01109187466 | G146: 0.000263247998 | H146: 0.002340938023 | I146: 9.025806452e-06 | K146: 5.804834354e-05 | L146: 0.01918965812 | N146: 0.005596596354 | O146: 0.008572900965 | P146: 0.0001262282631 | Q146: 0.002474011539 | R146: 3.79465714e-06 | T146: 5.462315016e-05 | U146: 0.01682815493
A147: 2004 | B147: 1 | C147: 7 | D147: 1 | E147: 0.004563830169 | F147: 0.01065885209 | G147: 0.000263247998 | H147: 0.002577546529 | I147: 9.025806452e-06 | K147: 5.804834354e-05 | L147: 0.01813055093 | N147: 0.004706865502 | O147: 0.00823821817 | P147: 0.0001262282631 | Q147: 0.002724070348 | R147: 3.79465714e-06 | T147: 5.462315016e-05 | U147: 0.01585380009
A148: 2004 | B148: 1 | C148: 7 | D148: 2 | E148: 0.004237208813 | F148: 0.01052751966 | G148: 0.000263247998 | H148: 0.002509686618 | I148: 9.025806452e-06 | K148: 5.804834354e-05 | L148: 0.01760473724 | N148: 0.004370007481 | O148: 0.008136711446 | P148: 0.0001262282631 | Q148: 0.002652352857 | R148: 3.79465714e-06 | T148: 5.462315016e-05 | U148: 0.01534371785
A149: 2004 | B149: 1 | C149: 7 | D149: 3 | E149: 0.004224607519 | F149: 0.009970376153 | G149: 0.000263247998 | H149: 0.002539768785 | I149: 9.025806452e-06 | K149: 5.804834354e-05 | L149: 0.01706507461 | N149: 0.00435701125 | O149: 0.007706095677 | P149: 0.0001262282631 | Q149: 0.002684145082 | R149: 3.79465714e-06 | T149: 5.462315016e-05 | U149: 0.01493189808
A150: 2004 | B150: 1 | C150: 7 | D150: 4 | E150: 0.004180074069 | F150: 0.01000619883 | G150: 0.000263247998 | H150: 0.002323277573 | I150: 9.025806452e-06 | K150: 5.804834354e-05 | L150: 0.01683987262 | N150: 0.004311082073 | O150: 0.007733782996 | P150: 0.0001262282631 | Q150: 0.002455347159 | R150: 3.79465714e-06 | T150: 5.462315016e-05 | U150: 0.0146848583
A151: 2004 | B151: 1 | C151: 7 | D151: 5 | E151: 0.004317805815 | F151: 0.009632280557 | G151: 0.000263247998 | H151: 0.00233939098 | I151: 9.025806452e-06 | K151: 5.804834354e-05 | L151: 0.0166197995 | N151: 0.00445313048 | O151: 0.007444781863 | P151: 0.0001262282631 | Q151: 0.002472376553 | R151: 3.79465714e-06 | T151: 5.462315016e-05 | U151: 0.01455493497
A152: 2004 | B152: 1 | C152: 7 | D152: 6 | E152: 0.004696585318 | F152: 0.01036291962 | G152: 0.000263247998 | H152: 0.002520652919 | I152: 9.025806452e-06 | K152: 5.804834354e-05 | L152: 0.01791048001 | N152: 0.004843781339 | O152: 0.008009492208 | P152: 0.0001262282631 | Q152: 0.002663942551 | R152: 3.79465714e-06 | T152: 5.462315016e-05 | U152: 0.01570186217
A153: 2004 | B153: 1 | C153: 7 | D153: 7 | E153: 0.00568775145 | F153: 0.0110507717 | G153: 0.000263247998 | H153: 0.002744308693 | I153: 9.025806452e-06 | K153: 5.804834354e-05 | L153: 0.01981315399 | N153: 0.005866011681 | O153: 0.008541132523 | P153: 0.0001262282631 | Q153: 0.002900312314 | R153: 3.79465714e-06 | T153: 5.462315016e-05 | U153: 0.01749210259
A154: 2004 | B154: 1 | C154: 7 | D154: 8 | E154: 0.006540514613 | F154: 0.01262860484 | G154: 0.0001974359985 | H154: 0.002775380958 | I154: 9.025806452e-06 | K154: 5.804834354e-05 | L154: 0.02220675411 | N154: 0.006745501355 | O154: 0.009760638483 | P154: 9.467119729e-05 | Q154: 0.002933150919 | R154: 3.79465714e-06 | T154: 5.462315016e-05 | U154: 0.01959237976
A155: 2004 | B155: 1 | C155: 7 | D155: 9 | E155: 0.006786182266 | F155: 0.01302407503 | G155: 0 | H155: 0.003112553044 | I155: 9.025806452e-06 | K155: 5.804834354e-05 | L155: 0.02298085868 | N155: 0.006998868496 | O155: 0.01006629707 | P155: 0 | Q155: 0.00328948997 | R155: 3.79465714e-06 | T155: 5.462315016e-05 | U155: 0.02041307335
A156: 2004 | B156: 1 | C156: 7 | D156: 10 | E156: 0.00635583316 | F156: 0.01325359801 | G156: 0 | H156: 0.003840216435 | I156: 9.025806452e-06 | K156: 5.804834354e-05 | L156: 0.02350769595 | N156: 0.006555031788 | O156: 0.0102436952 | P156: 0 | Q156: 0.004058518286 | R156: 3.79465714e-06 | T156: 5.462315016e-05 | U156: 0.02091566308
A157: 2004 | B157: 1 | C157: 7 | D157: 11 | E157: 0.006176776418 | F157: 0.0132890713 | G157: 0 | H157: 0.00356366319 | I157: 9.025806452e-06 | K157: 5.804834354e-05 | L157: 0.02308755925 | N157: 0.006370363215 | O157: 0.01027111247 | P157: 0 | Q157: 0.00376624403 | R157: 3.79465714e-06 | T157: 5.462315016e-05 | U157: 0.02046613753
A158: 2004 | B158: 1 | C158: 7 | D158: 12 | E158: 0.006249466972 | F158: 0.01346511941 | G158: 0 | H158: 0.003093825469 | I158: 9.025806452e-06 | K158: 5.804834354e-05 | L158: 0.0228664602 | N158: 0.006445331969 | O158: 0.01040717992 | P158: 0 | Q158: 0.003269697803 | R158: 3.79465714e-06 | T158: 5.462315016e-05 | U158: 0.0201806275
A159: 2004 | B159: 1 | C159: 7 | D159: 13 | E159: 0.00616563168 | F159: 0.01301762422 | G159: 0 | H159: 0.003256831186 | I159: 9.025806452e-06 | K159: 5.804834354e-05 | L159: 0.02249813543 | N159: 0.006358869189 | O159: 0.01006131125 | P159: 0 | Q159: 0.003441969781 | R159: 3.79465714e-06 | T159: 5.462315016e-05 | U159: 0.01992056803
A160: 2004 | B160: 1 | C160: 7 | D160: 14 | E160: 0.005968395206 | F160: 0.01338494359 | G160: 0 | H160: 0.003344265947 | I160: 9.025806452e-06 | K160: 5.804834354e-05 | L160: 0.02275565309 | N160: 0.006155451112 | O160: 0.01034521209 | P160: 0 | Q160: 0.00353437488 | R160: 3.79465714e-06 | T160: 5.462315016e-05 | U160: 0.02009345589
A161: 2004 | B161: 1 | C161: 7 | D161: 15 | E161: 0.00593139948 | F161: 0.01324893629 | G161: 0 | H161: 0.003120216626 | I161: 9.025806452e-06 | K161: 5.804834354e-05 | L161: 0.02235860074 | N161: 0.006117295901 | O161: 0.01024009216 | P161: 0 | Q161: 0.003297589198 | R161: 3.79465714e-06 | T161: 5.462315016e-05 | U161: 0.01971339506
A162: 2004 | B162: 1 | C162: 7 | D162: 16 | E162: 0.005968890459 | F162: 0.01275417299 | G162: 0 | H162: 0.003112723536 | I162: 9.025806452e-06 | K162: 5.804834354e-05 | L162: 0.02189383533 | N162: 0.006155961887 | O162: 0.009857690006 | P162: 0 | Q162: 0.003289670154 | R162: 3.79465714e-06 | T162: 5.462315016e-05 | U162: 0.01936173985
A163: 2004 | B163: 1 | C163: 7 | D163: 17 | E163: 0.006956123608 | F163: 0.01238895055 | G163: 6.58119995e-05 | H163: 0.003152625361 | I163: 9.025806452e-06 | K163: 5.804834354e-05 | L163: 0.02262381632 | N163: 0.007174135983 | O163: 0.009575409878 | P163: 3.155706576e-05 | Q163: 0.003331840248 | R163: 3.79465714e-06 | T163: 5.462315016e-05 | U163: 0.02017136098
A164: 2004 | B164: 1 | C164: 7 | D164: 18 | E164: 0.008189421578 | F164: 0.01301738356 | G164: 0.000263247998 | H164: 0.003360767922 | I164: 9.025806452e-06 | K164: 5.804834354e-05 | L164: 0.02489789521 | N164: 0.008446086834 | O164: 0.01006112524 | P164: 0.0001262282631 | Q164: 0.00355181493 | R164: 3.79465714e-06 | T164: 5.462315016e-05 | U164: 0.02224367307
A165: 2004 | B165: 1 | C165: 7 | D165: 19 | E165: 0.008653375346 | F165: 0.01316378395 | G165: 0.000263247998 | H165: 0.003130537965 | I165: 9.025806452e-06 | K165: 5.804834354e-05 | L165: 0.02527801941 | N165: 0.00892458141 | O165: 0.01017427799 | P165: 0.0001262282631 | Q165: 0.003308497266 | R165: 3.79465714e-06 | T165: 5.462315016e-05 | U165: 0.02259200273
A166: 2004 | B166: 1 | C166: 7 | D166: 20 | E166: 0.008718913961 | F166: 0.01236428182 | G166: 0.000263247998 | H166: 0.003036537814 | I166: 9.025806452e-06 | K166: 5.804834354e-05 | L166: 0.02445005575 | N166: 0.008992174076 | O166: 0.009556343437 | P166: 0.0001262282631 | Q166: 0.003209153561 | R166: 3.79465714e-06 | T166: 5.462315016e-05 | U166: 0.02194231714
A167: 2004 | B167: 1 | C167: 7 | D167: 21 | E167: 0.008471824076 | F167: 0.01217779043 | G167: 0.000263247998 | H167: 0.00290070263 | I167: 9.025806452e-06 | K167: 5.804834354e-05 | L167: 0.02388063928 | N167: 0.008737340128 | O167: 0.009412204385 | P167: 0.0001262282631 | Q167: 0.003065596657 | R167: 3.79465714e-06 | T167: 5.462315016e-05 | U167: 0.02139978724
A168: 2004 | B168: 1 | C168: 7 | D168: 22 | E168: 0.007761534509 | F168: 0.01228912787 | G168: 0.000263247998 | H168: 0.002835847143 | I168: 9.025806452e-06 | K168: 5.804834354e-05 | L168: 0.02321683167 | N168: 0.008004789325 | O168: 0.009498257006 | P168: 0.0001262282631 | Q168: 0.00299705438 | R168: 3.79465714e-06 | T168: 5.462315016e-05 | U168: 0.02068474678
A169: 2004 | B169: 1 | C169: 7 | D169: 23 | E169: 0.006893633829 | F169: 0.01198269093 | G169: 0.000263247998 | H169: 0.002058262254 | I169: 9.025806452e-06 | K169: 5.804834354e-05 | L169: 0.02126490916 | N169: 0.007109687706 | O169: 0.009261412142 | P169: 0.0001262282631 | Q169: 0.002175266716 | R169: 3.79465714e-06 | T169: 5.462315016e-05 | U169: 0.01873101263
A170: 2004 | B170: 1 | C170: 7 | D170: 24 | E170: 0.005520796001 | F170: 0.01093180058 | G170: 0.000263247998 | H170: 0.002455173989 | I170: 9.025806452e-06 | K170: 5.804834354e-05 | L170: 0.01923809272 | N170: 0.005693823669 | O170: 0.008449179838 | P170: 0.0001262282631 | Q170: 0.00259474139 | R170: 3.79465714e-06 | T170: 5.462315016e-05 | U170: 0.01692239097
A171: 2004 | B171: 1 | C171: 8 | D171: 1 | E171: 0.004306269638 | F171: 0.01091502126 | G171: 0.000263247998 | H171: 0.002335494355 | I171: 9.025806452e-06 | K171: 5.804834354e-05 | L171: 0.0178871074 | N171: 0.004441232747 | O171: 0.008436211117 | P171: 0.0001262282631 | Q171: 0.002468258419 | R171: 3.79465714e-06 | T171: 5.462315016e-05 | U171: 0.01553034835
A172: 2004 | B172: 1 | C172: 8 | D172: 2 | E172: 0.004106491608 | F172: 0.01044119965 | G172: 0.000263247998 | H172: 0.002490340199 | I172: 9.025806452e-06 | K172: 5.804834354e-05 | L172: 0.0173683536 | N172: 0.004235193459 | O172: 0.008069994776 | P172: 0.0001262282631 | Q172: 0.002631906666 | R172: 3.79465714e-06 | T172: 5.462315016e-05 | U172: 0.01512174097
A173: 2004 | B173: 1 | C173: 8 | D173: 3 | E173: 0.004034831645 | F173: 0.01004363512 | G173: 0.000263247998 | H173: 0.002427148517 | I173: 9.025806452e-06 | K173: 5.804834354e-05 | L173: 0.01683593743 | N173: 0.004161287596 | O173: 0.007762717476 | P173: 0.0001262282631 | Q173: 0.002565122776 | R173: 3.79465714e-06 | T173: 5.462315016e-05 | U173: 0.01467377392
A174: 2004 | B174: 1 | C174: 8 | D174: 4 | E174: 0.004251944149 | F174: 0.009380449505 | G174: 0.000263247998 | H174: 0.00265104377 | I174: 9.025806452e-06 | K174: 5.804834354e-05 | L174: 0.01661375957 | N174: 0.004385204638 | O174: 0.007250141847 | P174: 0.0001262282631 | Q174: 0.002801745631 | R174: 3.79465714e-06 | T174: 5.462315016e-05 | U174: 0.01462173819
A175: 2004 | B175: 1 | C175: 8 | D175: 5 | E175: 0.004067122729 | F175: 0.009859571496 | G175: 0.000263247998 | H175: 0.002139624684 | I175: 9.025806452e-06 | K175: 5.804834354e-05 | L175: 0.01639664106 | N175: 0.004194590718 | O175: 0.007620454846 | P175: 0.0001262282631 | Q175: 0.002261254295 | R175: 3.79465714e-06 | T175: 5.462315016e-05 | U175: 0.01426094593
A176: 2004 | B176: 1 | C176: 8 | D176: 6 | E176: 0.00437845688 | F176: 0.01073011404 | G176: 0.000263247998 | H176: 0.002231098168 | I176: 9.025806452e-06 | K176: 5.804834354e-05 | L176: 0.01766999124 | N176: 0.004515682415 | O176: 0.008293296478 | P176: 0.0001262282631 | Q176: 0.002357927701 | R176: 3.79465714e-06 | T176: 5.462315016e-05 | U176: 0.01535155266
A177: 2004 | B177: 1 | C177: 8 | D177: 7 | E177: 0.005429016369 | F177: 0.01117944821 | G177: 0.000263247998 | H177: 0.002608331635 | I177: 9.025806452e-06 | K177: 5.804834354e-05 | L177: 0.01954711836 | N177: 0.005599167565 | O177: 0.008640586492 | P177: 0.0001262282631 | Q177: 0.002756605472 | R177: 3.79465714e-06 | T177: 5.462315016e-05 | U177: 0.0171810056
A178: 2004 | B178: 1 | C178: 8 | D178: 8 | E178: 0.006248005777 | F178: 0.01280506339 | G178: 0.0001974359985 | H178: 0.002593257104 | I178: 9.025806452e-06 | K178: 5.804834354e-05 | L178: 0.02190857996 | N178: 0.00644382498 | O178: 0.00989702315 | P178: 9.467119729e-05 | Q178: 0.00274067401 | R178: 3.79465714e-06 | T178: 5.462315016e-05 | U178: 0.01923461114
A179: 2004 | B179: 1 | C179: 8 | D179: 9 | E179: 0.006477797932 | F179: 0.01325857498 | G179: 0 | H179: 0.002877866847 | I179: 9.025806452e-06 | K179: 5.804834354e-05 | L179: 0.0226722881 | N179: 0.006680819067 | O179: 0.01024754189 | P179: 0 | Q179: 0.003041462746 | R179: 3.79465714e-06 | T179: 5.462315016e-05 | U179: 0.02002824151
A180: 2004 | B180: 1 | C180: 8 | D180: 10 | E180: 0.005994912521 | F180: 0.01364846562 | G180: 0 | H180: 0.003490625809 | I180: 9.025806452e-06 | K180: 5.804834354e-05 | L180: 0.02319205229 | N180: 0.006182799509 | O180: 0.01054888806 | P180: 0 | Q180: 0.003689054749 | R180: 3.79465714e-06 | T180: 5.462315016e-05 | U180: 0.02047916012
A181: 2004 | B181: 1 | C181: 8 | D181: 11 | E181: 0.006019863805 | F181: 0.01314786504 | G181: 0 | H181: 0.003551779759 | I181: 9.025806452e-06 | K181: 5.804834354e-05 | L181: 0.02277755695 | N181: 0.006208532793 | O181: 0.01016197427 | P181: 0 | Q181: 0.003753685071 | R181: 3.79465714e-06 | T181: 5.462315016e-05 | U181: 0.02018260994
A182: 2004 | B182: 1 | C182: 8 | D182: 12 | E182: 0.006234922893 | F182: 0.01295016246 | G182: 0 | H182: 0.003316293089 | I182: 9.025806452e-06 | K182: 5.804834354e-05 | L182: 0.02255942678 | N182: 0.006430332063 | O182: 0.0100091701 | P182: 0 | Q182: 0.003504811869 | R182: 3.79465714e-06 | T182: 5.462315016e-05 | U182: 0.02000273184
A183: 2004 | B183: 1 | C183: 8 | D183: 13 | E183: 0.0059275228 | F183: 0.0131181511 | G183: 0 | H183: 0.003092324261 | I183: 9.025806452e-06 | K183: 5.804834354e-05 | L183: 0.0221960465 | N183: 0.006113297722 | O183: 0.01013900839 | P183: 0 | Q183: 0.003268111256 | R183: 3.79465714e-06 | T183: 5.462315016e-05 | U183: 0.01957883517
A184: 2004 | B184: 1 | C184: 8 | D184: 14 | E184: 0.00572723547 | F184: 0.01349579765 | G184: 0 | H184: 0.003169027681 | I184: 9.025806452e-06 | K184: 5.804834354e-05 | L184: 0.02245010914 | N184: 0.005906733172 | O184: 0.0104308911 | P184: 0 | Q184: 0.003349174978 | R184: 3.79465714e-06 | T184: 5.462315016e-05 | U184: 0.01974521706
A185: 2004 | B185: 1 | C185: 8 | D185: 15 | E185: 0.005704270957 | F185: 0.01333172708 | G185: 0 | H185: 0.002964340122 | I185: 9.025806452e-06 | K185: 5.804834354e-05 | L185: 0.02205838651 | N185: 0.005883048927 | O185: 0.0103040811 | P185: 0 | Q185: 0.003132851702 | R185: 3.79465714e-06 | T185: 5.462315016e-05 | U185: 0.01937839953
A186: 2004 | B186: 1 | C186: 8 | D186: 16 | E186: 0.005785359414 | F186: 0.01273698963 | G186: 0 | H186: 0.003019463554 | I186: 9.025806452e-06 | K186: 5.804834354e-05 | L186: 0.02159986094 | N186: 0.005966678783 | O186: 0.009844408995 | P186: 0 | Q186: 0.003191108693 | R186: 3.79465714e-06 | T186: 5.462315016e-05 | U186: 0.01906061428
A187: 2004 | B187: 1 | C187: 8 | D187: 17 | E187: 0.006680380099 | F187: 0.01258324807 | G187: 6.58119995e-05 | H187: 0.002930294303 | I187: 9.025806452e-06 | K187: 5.804834354e-05 | L187: 0.02232003926 | N187: 0.006889750377 | O187: 0.009725582268 | P187: 3.155706576e-05 | Q187: 0.003096870506 | R187: 3.79465714e-06 | T187: 5.462315016e-05 | U187: 0.01980217802
A188: 2004 | B188: 1 | C188: 8 | D188: 18 | E188: 0.008049091233 | F188: 0.01279935733 | G188: 0.000263247998 | H188: 0.003384814352 | I188: 9.025806452e-06 | K188: 5.804834354e-05 | L188: 0.02456358507 | N188: 0.008301358385 | O188: 0.009892612946 | P188: 0.0001262282631 | Q188: 0.003577228309 | R188: 3.79465714e-06 | T188: 5.462315016e-05 | U188: 0.02195584571
A189: 2004 | B189: 1 | C189: 8 | D189: 19 | E189: 0.008574944 | F189: 0.01276671051 | G189: 0.000263247998 | H189: 0.003266627758 | I189: 9.025806452e-06 | K189: 5.804834354e-05 | L189: 0.02493860442 | N189: 0.008843691942 | O189: 0.009867380245 | P189: 0.0001262282631 | Q189: 0.003452323251 | R189: 3.79465714e-06 | T189: 5.462315016e-05 | U189: 0.02234804151
A190: 2004 | B190: 1 | C190: 8 | D190: 20 | E190: 0.008514631069 | F190: 0.01229531771 | G190: 0.000263247998 | H190: 0.002981489343 | I190: 9.025806452e-06 | K190: 5.804834354e-05 | L190: 0.02412176027 | N190: 0.008781488738 | O190: 0.009503041129 | P190: 0.0001262282631 | Q190: 0.003150975791 | R190: 3.79465714e-06 | T190: 5.462315016e-05 | U190: 0.02162015173
A191: 2004 | B191: 1 | C191: 8 | D191: 21 | E191: 0.008329247684 | F191: 0.01196218312 | G191: 0.000263247998 | H191: 0.002938233695 | I191: 9.025806452e-06 | K191: 5.804834354e-05 | L191: 0.02355998665 | N191: 0.008590295239 | O191: 0.009245561671 | P191: 0.0001262282631 | Q191: 0.003105261222 | R191: 3.79465714e-06 | T191: 5.462315016e-05 | U191: 0.0211257642
A192: 2004 | B192: 1 | C192: 8 | D192: 22 | E192: 0.007618897352 | F192: 0.01209552681 | G192: 0.000263247998 | H192: 0.002860347071 | I192: 9.025806452e-06 | K192: 5.804834354e-05 | L192: 0.02290509339 | N192: 0.007857681767 | O192: 0.009348622906 | P192: 0.0001262282631 | Q192: 0.003022947037 | R192: 3.79465714e-06 | T192: 5.462315016e-05 | U192: 0.02041389778
A193: 2004 | B193: 1 | C193: 8 | D193: 23 | E193: 0.006824813769 | F193: 0.01161056733 | G193: 0.000263247998 | H193: 0.002213676374 | I193: 9.025806452e-06 | K193: 5.804834354e-05 | L193: 0.02097937962 | N193: 0.007038710752 | O193: 0.008973798109 | P193: 0.0001262282631 | Q193: 0.002339515545 | R193: 3.79465714e-06 | T193: 5.462315016e-05 | U193: 0.01853667048
A194: 2004 | B194: 1 | C194: 8 | D194: 24 | E194: 0.005313567034 | F194: 0.01099711266 | G194: 0.000263247998 | H194: 0.002338775916 | I194: 9.025806452e-06 | K194: 5.804834354e-05 | L194: 0.01897977776 | N194: 0.005480099923 | O194: 0.008499659495 | P194: 0.0001262282631 | Q194: 0.002471726524 | R194: 3.79465714e-06 | T194: 5.462315016e-05 | U194: 0.01663613201
A195: 2004 | B195: 1 | C195: 9 | D195: 1 | E195: 0.004733237734 | F195: 0.01025797966 | G195: 0.000263247998 | H195: 0.002574228318 | I195: 9.025806452e-06 | K195: 5.804834354e-05 | L195: 0.01789576786 | N195: =E195*Y$5 -> 0.004881582481 | O195: =F195*Z$5 -> 0.007928384193 | P195: =G195*AA$5 -> 0.0001262282631 | Q195: =H195*AB$5 -> 0.002720563509 | R195: =I195*AC$5 -> 3.79465714e-06 | T195: =K195*AE$5 -> 5.462315016e-05 | U195: 0.01571517625
A196: 2004 | B196: 1 | C196: 9 | D196: 2 | E196: 0.004416782783 | F196: 0.01037923708 | G196: 0.000263247998 | H196: 0.002546107033 | I196: 9.025806452e-06 | K196: 5.804834354e-05 | L196: 0.01767244904 | N196: 0.004555209492 | O196: 0.008022103958 | P196: 0.0001262282631 | Q196: 0.002690843635 | R196: 3.79465714e-06 | T196: 5.462315016e-05 | U196: =SUM(N196:T196) -> 0.01545280315
A197: 2004 | B197: 1 | C197: 9 | D197: 3 | E197: 0.004400282518 | F197: 0.00989793353 | G197: 0.000263247998 | H197: 0.002636178351 | I197: 9.025806452e-06 | K197: 5.804834354e-05 | L197: 0.01726471655 | N197: 0.004538192091 | O197: 0.007650104831 | P197: 0.0001262282631 | Q197: 0.002786035169 | R197: 3.79465714e-06 | T197: 5.462315016e-05 | U197: 0.01515897816
A198: 2004 | B198: 1 | C198: 9 | D198: 4 | E198: 0.004430707738 | F198: 0.009873926882 | G198: 0.000263247998 | H198: 0.002412504744 | I198: 9.025806452e-06 | K198: 5.804834354e-05 | L198: 0.01704746151 | N198: 0.004569570871 | O198: 0.007631550113 | P198: 0.0001262282631 | Q198: 0.002549646559 | R198: 3.79465714e-06 | T198: 5.462315016e-05 | U198: 0.01493541361
A199: 2004 | B199: 1 | C199: 9 | D199: 5 | E199: 0.004524444937 | F199: 0.009524228744 | G199: 0.000263247998 | H199: 0.002418874578 | I199: 9.025806452e-06 | K199: 5.804834354e-05 | L199: 0.01679787041 | N199: 0.004666245893 | O199: 0.007361268704 | P199: 0.0001262282631 | Q199: 0.002556378494 | R199: 3.79465714e-06 | T199: 5.462315016e-05 | U199: 0.01476853916
A200: 2004 | B200: 1 | C200: 9 | D200: 6 | E200: 0.004805785932 | F200: 0.01041000062 | G200: 0.000263247998 | H200: 0.002537104179 | I200: 9.025806452e-06 | K200: 5.804834354e-05 | L200: 0.01808321288 | N200: 0.004956404417 | O200: 0.008045881075 | P200: 0.0001262282631 | Q200: 0.002681329003 | R200: 3.79465714e-06 | T200: 5.462315016e-05 | U200: 0.01586826057
... 4297 more rows

Sheet 2006 Input to CA model
A2: Feed into OEB Cost Allocation Model (version 50) sheet "I6 Customer Data", row 27
D3: 1 | E3: 2 | F3: 3 | G3: 4 | H3: 5 | I3: 6 | J3: 7 | K3: 8 | L3: 9 | M3: 10 | N3: 11 | O3: 12 | P3: 13 | Q3: 14 | R3: 15 | S3: 16 | T3: 17 | U3: 18 | V3: 19 | W3: 20
B4: ID | C4: Total | D4: Residential | E4: GS>50kW | F4: Street Lighting | G4: GS<50 | H4: Sentinel Lighting | I4: Intermediate | J4: USL
A6: kWh - 30 year weather normalized amount | C6: =SUM(D6:J6) -> 159039771.5 | D6: 45951842.7 | E6: 64128836.09 | F6: 1172414.561 | G6: 22073179.91 | H6: 54335 | I6: 25073677.35 | J6: 585485.8832 | K6: 0 | L6: 0 | M6: 0 | N6: 0
A9: Feed into OEB Cost Allocation Model sheet (version 50) "I8 Demand Data", row 40, 45, 50, 55, 61 and 67
D10: 1 | E10: 2 | F10: 3 | G10: 4 | H10: 5 | I10: 6 | J10: 7 | K10: 8 | L10: 9 | M10: 10 | N10: 11 | O10: 12 | P10: 13 | Q10: 14 | R10: 15 | S10: 16 | T10: 17 | U10: 18 | V10: 19 | W10: 20
A11: Customer Classes | C11: Total | D11: Residential | E11: GS>50kW | F11: Street Lighting | G11: GS<50 | H11: Sentinel Lighting | I11: Intermediate | J11: USL
A13: CO-INCIDENT PEAK (kW)
A15: 1 CP
A16: Total Sytem CP | B16: DCP1 | C16: =SUM(D16:J16) -> 26295.38785 | D16: 9644.220353 | E16: 9161.111096 | F16: 263.247998 | G16: 3801.870509 | H16: 9.025806452 | I16: 3357.863744 | J16: 58.04834354
A18: 4 CP
A19: Total Sytem CP | B19: DCP4 | C19: =SUM(D19:J19) -> 103377.9865 | D19: 35482.95988 | E19: 38097.61151 | F19: 792.574674 | G19: 14976.28372 | H19: 27.00177976 | I19: 13738.92998 | J19: 262.6249755
A21: 12 CP
A22: Total Sytem CP | B22: DCP12 | C22: =SUM(D22:J22) -> 287804.1517 | D22: 95661.91293 | E22: 112368.04 | F22: 1670.919214 | G22: 38542.24936 | H22: 76.22858066 | I22: 38685.0336 | J22: 799.7679649
A24: NON CO_INCIDENT PEAK (kW)
A26: 1 NCP
A27: Classification NCP from Load Data Provider | B27: DNCP1 | C27: =SUM(D27:J27) -> 30714.00659 | D27: 10252.37778 | E27: 10831.75349 | F27: 272.5850484 | G27: 5126.853841 | H27: 21.07612903 | I27: 4126.600896 | J27: 82.75940832
A29: 4 NCP
A30: Classification NCP from Load Data Provider | B30: DNCP4 | C30: =SUM(D30:J30) -> 118816.2138 | D30: 38962.52515 | E30: 42921.52085 | F30: 1088.2392 | G30: 19120.7442 | H30: 67.576009 | I30: 16352.31379 | J30: 303.2945899
A32: 12 NCP
A33: Classification NCP from Load Data Provider | B33: DNCP12 | C33: =SUM(D33:J33) -> 329371.6802 | D33: 104553.7996 | E33: 123340.5484 | F33: 3232.137522 | G33: 50450.7086 | H33: 154.1118365 | I33: 46840.60634 | J33: 799.7679649

Sheet Revised Inputs to CA model
A2: Feed into OEB Cost Allocation Model (version 50) sheet "I6 Customer Data", row 27
B4: ID | C4: Total | D4: 1 | E4: 2 | F4: 3 | G4: 4 | H4: 5 | I4: 6 | J4: 7
D5: Residential | E5: GS>50kW | F5: Street Lighting | G5: GS<50 | H5: Sentinel Lighting | I5: Intermediate | J5: USL
A6: kWh - 30 year weather normalized amount
A9: Feed into OEB Cost Allocation Model sheet (version 50) "I8 Demand Data", row 40, 45, 50, 55, 61 and 67 | L9: 2018 Demand Data
A11: Customer Classes | C11: Total | D11: ='Hourly load shapes by class'!E2 -> Residential | E11: ='Hourly load shapes by class'!F2 -> GS>50 2999 | F11: ='Hourly load shapes by class'!G2 -> Street Lighting | G11: ='Hourly load shapes by class'!H2 -> GS<50kW | H11: ='Hourly load shapes by class'!I2 -> Sentinel Lighting | I11: ='Hourly load shapes by class'!J2 -> GS 3000 4999 | J11: ='Hourly load shapes by class'!K2 -> USL | K11: Total | L11: =D11 -> Residential | M11: =E11 -> GS>50 2999 | N11: Street Lighting | O11: GS<50kW | P11: Sentinel Lighting | Q11: GS 3000 4999 | R11: USL
A13: CO-INCIDENT PEAK (kW)
A15: 1 CP
A16: Total Sytem CP | B16: DCP1 | C16: =SUM(D16:J16) -> 26295.38785 | D16: ='2006 Input to CA model'!D16 -> 9644.220353 | E16: ='2006 Input to CA model'!E16 -> 9161.111096 | F16: ='2006 Input to CA model'!F16 -> 263.247998 | G16: ='2006 Input to CA model'!G16 -> 3801.870509 | H16: ='2006 Input to CA model'!H16 -> 9.025806452 | I16: ='2006 Input to CA model'!I16 -> 3357.863744 | J16: ='2006 Input to CA model'!J16 -> 58.04834354 | K16: =SUM(L16:R16) -> 23825.02471 | L16: ='Hourly load shapes by class'!N8815*1000000 -> 9946.480562 | M16: ='Hourly load shapes by class'!O8815*1000000 -> 9675.905543 | N16: ='Hourly load shapes by class'!P8815*1000000 -> 126.2282631 | O16: ='Hourly load shapes by class'!Q8815*1000000 -> 4017.992539 | P16: ='Hourly load shapes by class'!R8815*1000000 -> 3.79465714 | Q16: ='Hourly load shapes by class'!S8815*1000000 -> 0 | R16: ='Hourly load shapes by class'!T8815*1000000 -> 54.62315016
A18: 4 CP
A19: Total Sytem CP | B19: DCP4 | C19: =SUM(D19:J19) -> 103377.9865 | D19: ='2006 Input to CA model'!D19 -> 35482.95988 | E19: ='2006 Input to CA model'!E19 -> 38097.61151 | F19: ='2006 Input to CA model'!F19 -> 792.574674 | G19: ='2006 Input to CA model'!G19 -> 14976.28372 | H19: ='2006 Input to CA model'!H19 -> 27.00177976 | I19: ='2006 Input to CA model'!I19 -> 13738.92998 | J19: ='2006 Input to CA model'!J19 -> 262.6249755 | K19: =SUM(L19:R19) -> 93202.76516 | L19: =SUM('Hourly load shapes by class'!N8815:N8818)*1000000 -> 37626.65949 | M19: =SUM('Hourly load shapes by class'!O8815:O8818)*1000000 -> 38662.76421 | N19: =SUM('Hourly load shapes by class'!P8815:P8818)*1000000 -> 383.1619349 | O19: =SUM('Hourly load shapes by class'!Q8815:Q8818)*1000000 -> 16254.99691 | P19: =SUM('Hourly load shapes by class'!R8815:R8818)*1000000 -> 15.17862856 | Q19: =SUM('Hourly load shapes by class'!S8815:S8818)*1000000 -> 0 | R19: =SUM('Hourly load shapes by class'!T8815:T8818)*1000000 -> 260.0039902
A21: 12 CP
A22: Total Sytem CP | B22: DCP12 | C22: =SUM(D22:J22) -> 287804.1517 | D22: ='2006 Input to CA model'!D22 -> 95661.91293 | E22: ='2006 Input to CA model'!E22 -> 112368.04 | F22: ='2006 Input to CA model'!F22 -> 1670.919214 | G22: ='2006 Input to CA model'!G22 -> 38542.24936 | H22: ='2006 Input to CA model'!H22 -> 76.22858066 | I22: ='2006 Input to CA model'!I22 -> 38685.0336 | J22: ='2006 Input to CA model'!J22 -> 799.7679649 | K22: =SUM(L22:R22) -> 258273.687 | L22: =SUM('Hourly load shapes by class'!N8802:N8813)*1000000 -> 100292.8534 | M22: =SUM('Hourly load shapes by class'!O8802:O8813)*1000000 -> 111646.1319 | N22: =SUM('Hourly load shapes by class'!P8802:P8813)*1000000 -> 801.2111458 | O22: =SUM('Hourly load shapes by class'!Q8802:Q8813)*1000000 -> 44735.37777 | P22: =SUM('Hourly load shapes by class'!R8802:R8813)*1000000 -> 45.53588568 | Q22: =SUM('Hourly load shapes by class'!S8802:S8813)*1000000 -> 0 | R22: =SUM('Hourly load shapes by class'!T8802:T8813)*1000000 -> 752.5769553
A24: NON CO_INCIDENT PEAK (kW)
A26: 1 NCP
A27: Classification NCP from Load Data Provider | B27: DNCP1 | C27: =SUM(D27:J27) -> 30714.00659 | D27: ='2006 Input to CA model'!D27 -> 10252.37778 | E27: ='2006 Input to CA model'!E27 -> 10831.75349 | F27: ='2006 Input to CA model'!F27 -> 272.5850484 | G27: ='2006 Input to CA model'!G27 -> 5126.853841 | H27: ='2006 Input to CA model'!H27 -> 21.07612903 | I27: ='2006 Input to CA model'!I27 -> 4126.600896 | J27: ='2006 Input to CA model'!J27 -> 82.75940832 | K27: =SUM(L27:R27) -> 26992.94504 | L27: =MAX('Hourly load shapes by class'!N8788:N8799*1000000) -> 10573.6983 | M27: =MAX('Hourly load shapes by class'!O8788:O8799*1000000) -> 10788.57438 | N27: =MAX('Hourly load shapes by class'!P8788:P8799*1000000) -> 130.7054088 | O27: =MAX('Hourly load shapes by class'!Q8788:Q8799*1000000) -> 5418.296186 | P27: =MAX('Hourly load shapes by class'!R8788:R8799*1000000) -> 3.79465714 | Q27: =MAX('Hourly load shapes by class'!S8788:S8799*1000000) -> 0 | R27: =MAX('Hourly load shapes by class'!T8788:T8799*1000000) -> 77.8761169
A29: 4 NCP
A30: Classification NCP from Load Data Provider | B30: DNCP4 | C30: =SUM(D30:J30) -> 118816.2138 | D30: ='2006 Input to CA model'!D30 -> 38962.52515 | E30: ='2006 Input to CA model'!E30 -> 42921.52085 | F30: ='2006 Input to CA model'!F30 -> 1088.2392 | G30: ='2006 Input to CA model'!G30 -> 19120.7442 | H30: ='2006 Input to CA model'!H30 -> 67.576009 | I30: ='2006 Input to CA model'!I30 -> 16352.31379 | J30: ='2006 Input to CA model'!J30 -> 303.2945899 | K30: =SUM(L30:R30) -> 104158.6736 | L30: =(LARGE('Hourly load shapes by class'!N8788:N8799,1)+LARGE('Hourly load shapes by class'!N8788:N8799,2)+LARGE('Hourly load shapes by class'!N8788:N8799,3)+LARGE('Hourly load shapes by class'!N8788:N8799,4))*1000000 -> 40183.65248 | M30: =(LARGE('Hourly load shapes by class'!O8788:O8799,1)+LARGE('Hourly load shapes by class'!O8788:O8799,2)+LARGE('Hourly load shapes by class'!O8788:O8799,3)+LARGE('Hourly load shapes by class'!O8788:O8799,4))*1000000 -> 42944.94331 | N30: =(LARGE('Hourly load shapes by class'!P8788:P8799,1)+LARGE('Hourly load shapes by class'!P8788:P8799,2)+LARGE('Hourly load shapes by class'!P8788:P8799,3)+LARGE('Hourly load shapes by class'!P8788:P8799,4))*1000000 -> 521.814202 | O30: =(LARGE('Hourly load shapes by class'!Q8788:Q8799,1)+LARGE('Hourly load shapes by class'!Q8788:Q8799,2)+LARGE('Hourly load shapes by class'!Q8788:Q8799,3)+LARGE('Hourly load shapes by class'!Q8788:Q8799,4))*1000000 -> 20207.68654 | P30: =(LARGE('Hourly load shapes by class'!R8788:R8799,1)+LARGE('Hourly load shapes by class'!R8788:R8799,2)+LARGE('Hourly load shapes by class'!R8788:R8799,3)+LARGE('Hourly load shapes by class'!R8788:R8799,4))*1000000 -> 15.17862856 | Q30: =(LARGE('Hourly load shapes by class'!S8788:S8799,1)+LARGE('Hourly load shapes by class'!S8788:S8799,2)+LARGE('Hourly load shapes by class'!S8788:S8799,3)+LARGE('Hourly load shapes by class'!S8788:S8799,4))*1000000 -> 0 | R30: =(LARGE('Hourly load shapes by class'!T8788:T8799,1)+LARGE('Hourly load shapes by class'!T8788:T8799,2)+LARGE('Hourly load shapes by class'!T8788:T8799,3)+LARGE('Hourly load shapes by class'!T8788:T8799,4))*1000000 -> 285.3984269
A32: 12 NCP
A33: Classification NCP from Load Data Provider | B33: DNCP12 | C33: =SUM(D33:J33) -> 329371.6802 | D33: ='2006 Input to CA model'!D33 -> 104553.7996 | E33: ='2006 Input to CA model'!E33 -> 123340.5484 | F33: ='2006 Input to CA model'!F33 -> 3232.137522 | G33: ='2006 Input to CA model'!G33 -> 50450.7086 | H33: ='2006 Input to CA model'!H33 -> 154.1118365 | I33: ='2006 Input to CA model'!I33 -> 46840.60634 | J33: ='2006 Input to CA model'!J33 -> 799.7679649 | K33: =SUM(L33:R33) -> 290549.3452 | L33: =SUM('Hourly load shapes by class'!N8788:N8799)*1000000 -> 107830.6278 | M33: =SUM('Hourly load shapes by class'!O8788:O8799)*1000000 -> 127052.1427 | N33: =SUM('Hourly load shapes by class'!P8788:P8799)*1000000 -> 1549.820353 | O33: =SUM('Hourly load shapes by class'!Q8788:Q8799)*1000000 -> 53318.6415 | P33: =SUM('Hourly load shapes by class'!R8788:R8799)*1000000 -> 45.53588568 | Q33: =SUM('Hourly load shapes by class'!S8788:S8799)*1000000 -> 0 | R33: =SUM('Hourly load shapes by class'!T8788:T8799)*1000000 -> 752.5769553
